Workbook

Sheet MENÚ PRINCIPAL
C1: SEGUIMIENTO PLAN OPERATIVO VIGENCIA 2021

Sheet HOJA SEGUIMIENTO (hidden)
A1: SEGUIMIENTO PLAN DE ACCION 2021 E.S.E HOSPITAL REGIONAL DE DUITAMA
E4: PROGRAMACION | J4: SEGUIMIENTO
A5: EJE ESTRATEGICO TABLA (PADRE) | B5: PROGRAMA/ POLITICA | C5: ACTIVIDAD | D5: ID. | E5: TRIMESTRE 1 | F5: TRIMESTRE 2 | G5: TRIMESTRE 3 | H5: TRIMESTRE 4 | I5: TOTAL ACT.PROGRAMADAS | J5: TRIMESTRE 1 | K5: TRIMESTRE 2 | L5: TRIMESTRE 3 | M5: TRIMESTRE 4 | N5: TOTAL DE ACTIVIDADES | P5: % TOTAL PROGRAMADO | Q5: % CUMPLIMINETO
A6: TRABAJANDO EN CONDICIONES DE SEGURIDAD, CALIDAD Y CALIDEZ. | B6: CAMINO HACIA LA ACREDITACIÓN | C6: Dar cumplimiento al mantenimiento de las condiciones de Habilitación para la ESE Hospital Regional de Duitama (excepto Infraestructura) | D6: =ROW()-5 -> 1 | E6: 0 | F6: 0 | G6: 0 | H6: 1 | I6: =SUM(E6:H6) -> 1 | N6: =IFERROR(SUM(J6:M6)/I6,0%) -> 0 | P6: =IFERROR(I6/SUM($I$6:$I$208),"") -> 0.001692047377 | Q6: =IFERROR(SUM(J6:M6)/SUM($I$6:$I$208),0%) -> 0
A7: TRABAJANDO EN CONDICIONES DE SEGURIDAD, CALIDAD Y CALIDEZ. | B7: CAMINO HACIA LA ACREDITACIÓN | C7: Cumplimiento del Programa de Auditoria para el Mejoramiento de la Calidad (PAMEC) | D7: =ROW()-5 -> 2 | E7: 0 | F7: 0 | G7: 0 | H7: 1 | I7: =SUM(E7:H7) -> 1 | N7: =IFERROR(SUM(J7:M7)/I7,0%) -> 0 | P7: 0.001692047377 | Q7: 0
A8: TRABAJANDO EN CONDICIONES DE SEGURIDAD, CALIDAD Y CALIDEZ. | B8: CAMINO HACIA LA ACREDITACIÓN | C8: Cumplimiento oportuno del reporte relacionado con el Sistema de Información para la Calidad (SIC) | D8: 3 | E8: 0 | F8: 0 | G8: 0 | H8: 1 | I8: 1 | N8: 0 | P8: 0.001692047377 | Q8: 0
A9: TRABAJANDO EN CONDICIONES DE SEGURIDAD, CALIDAD Y CALIDEZ. | B9: CAMINO HACIA LA ACREDITACIÓN | C9: Autoevaluación de los estándares de acreditación aplicable a instituciones no acreditadas. | D9: 4 | E9: 0 | F9: 0 | G9: 0 | H9: 1 | I9: 1 | N9: 0 | P9: 0.001692047377 | Q9: 0
A10: TRABAJANDO EN CONDICIONES DE SEGURIDAD, CALIDAD Y CALIDEZ. | B10: IMPLEMENTACIÓN POLÍTICA DE HUMANIZACIÓN | C10: Conformar equipo de humanización para atención de necesidades de los usuarios, instalando 1 punto en urgencias, 1 punto en consulta externa y 2 puntos en hospitalización | D10: 5 | E10: 1 | F10: 1 | G10: 1 | H10: 1 | I10: 4 | J10: 1 | N10: 0.25 | P10: 0.006768189509 | Q10: 0.001692047377
A11: TRABAJANDO EN CONDICIONES DE SEGURIDAD, CALIDAD Y CALIDEZ. | B11: IMPLEMENTACIÓN POLÍTICA DE HUMANIZACIÓN | C11: Documentar y normalizar Política de humanización | D11: 6 | E11: 1 | F11: 0 | G11: 0 | H11: 0 | I11: 1 | J11: 1 | N11: 1 | P11: 0.001692047377 | Q11: 0.001692047377
A12: TRABAJANDO EN CONDICIONES DE SEGURIDAD, CALIDAD Y CALIDEZ. | B12: IMPLEMENTACIÓN POLÍTICA DE HUMANIZACIÓN | C12: Implementar Política de humanización | D12: 7 | E12: 0 | F12: 0 | G12: 0 | H12: 1 | I12: 1 | N12: 0 | P12: 0.001692047377 | Q12: 0
A13: TRABAJANDO EN CONDICIONES DE SEGURIDAD, CALIDAD Y CALIDEZ. | B13: SALUD DE LA FAMILIA GESTANTE | C13: Autoevaluación trimestral de la estrategia | D13: 8 | E13: 1 | F13: 1 | G13: 1 | H13: 1 | I13: 4 | J13: 1 | N13: 0.25 | P13: 0.006768189509 | Q13: 0.001692047377
A14: TRABAJANDO EN CONDICIONES DE SEGURIDAD, CALIDAD Y CALIDEZ. | B14: SALUD DE LA FAMILIA GESTANTE | C14: Implementación de los formatos de historia clínica (Gestión del Riesgo Obstetra, Riesgo tromboembolico, Escala de alerta temprana, Escala de Edimburgo y Clasificación del Riesgo Prenatal, Control de poperio de alto riesgo) | D14: 9 | E14: 1 | F14: 1 | G14: 2 | H14: 2 | I14: 6 | J14: 1 | N14: 0.1666666667 | P14: 0.01015228426 | Q14: 0.001692047377
A15: TRABAJANDO EN CONDICIONES DE SEGURIDAD, CALIDAD Y CALIDEZ. | B15: SALUD DE LA FAMILIA GESTANTE | C15: Fortalecer el programa de inducción de la estrategia IAMI a todos los colaboradores del hospital, mediante de curso de formación en la plataforma AVA | D15: 10 | E15: 0 | F15: 0 | G15: 0 | H15: 1 | I15: 1 | N15: 0 | P15: 0.001692047377 | Q15: 0
A16: TRABAJANDO EN CONDICIONES DE SEGURIDAD, CALIDAD Y CALIDEZ. | B16: ATENCIÓN SEGURA | C16: Actualizar política y programa de seguridad del paciente, incluyendo plan de incentivos para la seguridad del paciente y medición de la percepción de la seguridad del paciente. | D16: 11 | E16: 0 | F16: 1 | G16: 0 | H16: 0 | I16: 1 | N16: 0 | P16: 0.001692047377 | Q16: 0
A17: TRABAJANDO EN CONDICIONES DE SEGURIDAD, CALIDAD Y CALIDEZ. | B17: ATENCIÓN SEGURA | C17: Vigilancia de la adherencia a los programas prevención de infecciones asociadas a la atenció en salud (Aislamiento, procesos de limpieza y desinfección, uso racional de antibióticos, programa higiene de manos, adherencia a protocolos venopunción, búsqueda activa de infecciones asociadas a la atención en Salud) | D17: 12 | E17: 0 | F17: 1 | G17: 0 | H17: 1 | I17: 2 | N17: 0 | P17: 0.003384094755 | Q17: 0
A18: TRABAJANDO EN CONDICIONES DE SEGURIDAD, CALIDAD Y CALIDEZ. | B18: ATENCIÓN SEGURA | C18: Elaborar linea de base respecto del avance en la implemntación de los paquetes instruccionales | D18: 13 | E18: 0 | F18: 1 | G18: 0 | H18: 1 | I18: 2 | N18: 0 | P18: 0.003384094755 | Q18: 0
A19: TRABAJANDO EN CONDICIONES DE SEGURIDAD, CALIDAD Y CALIDEZ. | B19: ATENCIÓN SEGURA | C19: Elaboración de plan de trabajo para la implementación de paquetes instruccionales de seguridad del pacientes | D19: 14 | E19: 0 | F19: 0 | G19: 0 | H19: 1 | I19: 1 | N19: 0 | P19: 0.001692047377 | Q19: 0
A20: SUPERANDO LA PANDEMIA | B20: SUPERANDO JUNTOS LA COVID 19 | C20: Elaboración de productos audiovisuales, impresos y espacios virtuales para la socialización de los protocolos y recomendaciones para los colaboradores de la entidad. | D20: 15 | E20: 3 | F20: 3 | G20: 3 | H20: 3 | I20: 12 | J20: 3 | N20: 0.25 | P20: 0.02030456853 | Q20: 0.005076142132
A21: SUPERANDO LA PANDEMIA | B21: SUPERANDO JUNTOS LA COVID 19 | C21: Elaboración de material educativo audiovisual o impreso para la socialización de recomendaciones a la comunidad sobre prevención y manejo de la pandemia y sus consecuencias. | D21: 16 | E21: 3 | F21: 3 | G21: 3 | H21: 3 | I21: 12 | J21: 3 | N21: 0.25 | P21: 0.02030456853 | Q21: 0.005076142132
A22: SUPERANDO LA PANDEMIA | B22: SUPERANDO JUNTOS LA COVID 19 | C22: Elaboración de material impreso para la señalización de lugares de alta afluencia de público con el objetivo de cumplir con las recomendaciones de distanciamiento y protocolos de seguridad. | D22: 17 | E22: 0 | F22: 0 | G22: 0 | H22: 1 | I22: 1 | N22: 0 | P22: 0.001692047377 | Q22: 0
A23: SUPERANDO LA PANDEMIA | B23: SUPERANDO JUNTOS LA COVID 19 | C23: Elaboración de material audiovisual o impreso para la socialización de los servicios ofertados y las distintas maneras de acceso a los mismos. | D23: 18 | E23: 0 | F23: 0 | G23: 0 | H23: 1 | I23: 1 | N23: 0 | P23: 0.001692047377 | Q23: 0
A24: SUPERANDO LA PANDEMIA | B24: SUPERANDO JUNTOS LA COVID 19 | C24: Realizar auditorias mensuales de adherencia al protocolo de seguridad laboral | D24: 19 | E24: 3 | F24: 3 | G24: 3 | H24: 3 | I24: 12 | J24: 3 | N24: 0.25 | P24: 0.02030456853 | Q24: 0.005076142132
A25: SUPERANDO LA PANDEMIA | B25: SUPERANDO JUNTOS LA COVID 19 | C25: Participar en la investigación, seguimiento, cerco epidemiológico de los casos COVID 19 que se presenten en los colaboradores de la ESE Hospital Regional Duitama | D25: 20 | E25: 0 | F25: 0 | G25: 0 | H25: 1 | I25: 1 | N25: 0 | P25: 0.001692047377 | Q25: 0
A26: SUPERANDO LA PANDEMIA | B26: SUPERANDO JUNTOS LA COVID 19 | C26: Seguimiento a la implementación del plan de vacunación para COVID 19 según lineamientos normativos | D26: 21 | E26: 0 | F26: 0 | G26: 0 | H26: 1 | I26: 1 | N26: 0 | P26: 0.001692047377 | Q26: 0
A27: SUPERANDO LA PANDEMIA | B27: AMPLIACIÓN PORTAFOLIO DE SERVICIOS | C27: Inscripción ante el REPS de nuevos servicios | D27: 22 | E27: 0 | F27: 1 | G27: 0 | H27: 1 | I27: 2 | N27: 0 | P27: 0.003384094755 | Q27: 0
A28: SUPERANDO LA PANDEMIA | B28: AMPLIACIÓN PORTAFOLIO DE SERVICIOS | C28: Ofertar a las EAPB con contrato vigente sobre los nuevos servicios ofertados por la Institución según reporte de Calidad ante REPS | D28: 23 | E28: 0 | F28: 1 | G28: 0 | H28: 1 | I28: 2 | N28: 0 | P28: 0.003384094755 | Q28: 0
A29: SUPERANDO LA PANDEMIA | B29: AMPLIACIÓN PORTAFOLIO DE SERVICIOS | C29: Socializar los acuerdo de voluntades con las diferentes EAPB | D29: 24 | E29: 0 | F29: 1 | G29: 0 | H29: 1 | I29: 2 | N29: 0 | P29: 0.003384094755 | Q29: 0
A30: SUPERANDO LA PANDEMIA | B30: AMPLIACIÓN PORTAFOLIO DE SERVICIOS | C30: Actualización del proceso y procedimientos de la Gestión Comercial | D30: 25 | E30: 0 | F30: 2 | G30: 1 | H30: 0 | I30: 3 | N30: 0 | P30: 0.005076142132 | Q30: 0
A31: NOS EVALUAMOS Y MEJORAMOS | B31: REINGENIERÍA DE PROCESOS | C31: Restructuración del mapa de procesos | D31: 26 | E31: 0 | F31: 0 | G31: 0 | H31: 1 | I31: 1 | N31: 0 | P31: 0.001692047377 | Q31: 0
A32: NOS EVALUAMOS Y MEJORAMOS | B32: REINGENIERÍA DE PROCESOS | C32: Levantamiento de inventario documental (Procesos, Subprocesos, Procedimientos, Guías, Protocolos y Formatos) | D32: 27 | E32: 1 | F32: 0 | G32: 0 | H32: 0 | I32: 1 | J32: 1 | N32: 1 | P32: 0.001692047377 | Q32: 0.001692047377
A33: NOS EVALUAMOS Y MEJORAMOS | B33: REINGENIERÍA DE PROCESOS | C33: Socialización de inventario documental con cada uno de los lideres | D33: 28 | E33: 0 | F33: 1 | G33: 0 | H33: 0 | I33: 1 | N33: 0 | P33: 0.001692047377 | Q33: 0
A34: NOS EVALUAMOS Y MEJORAMOS | B34: REINGENIERÍA DE PROCESOS | C34: Revisión y actualización documental del año 2018 y anteriores | D34: 29 | E34: 0 | F34: 0 | G34: 0 | H34: 1 | I34: 1 | N34: 0 | P34: 0.001692047377 | Q34: 0
A35: NOS EVALUAMOS Y MEJORAMOS | B35: MEJORA CONTINUA | C35: Seguimiento trimestral al cumplimiento de las actividades a desarrollar de la Matriz de Riesgo | D35: 30 | E35: 1 | F35: 1 | G35: 1 | H35: 1 | I35: 4 | J35: 1 | N35: 0.25 | P35: 0.006768189509 | Q35: 0.001692047377
A36: NOS EVALUAMOS Y MEJORAMOS | B36: MEJORA CONTINUA | C36: Seguimiento Bimensual de las acciones planteadas en el PUMI, verificando acciones cerradas y pendientes | D36: 31 | E36: 3 | F36: 3 | G36: 3 | H36: 3 | I36: 12 | J36: 3 | N36: 0.25 | P36: 0.02030456853 | Q36: 0.005076142132
A37: NOS EVALUAMOS Y MEJORAMOS | B37: MEJORA CONTINUA | C37: Elaborar actas de compromiso con los líderes que tengas acciones de mejora pendientes por realizar | D37: 32 | E37: 0 | F37: 0 | G37: 0 | H37: 1 | I37: 1 | N37: 0 | P37: 0.001692047377 | Q37: 0
A38: COMPETITIVOS Y SOSTENIBLES | B38: IMPLEMENTACIÓN SISTEMA DE COSTOS | C38: Continuar con la fase II del sistema de Costos, la cual se centra en la perfección de las parametrizaciones de los diferentes módulos que conforman el software Dinámica Gerencial. | D38: 33 | E38: 1 | F38: 1 | G38: 1 | H38: 1 | I38: 4 | J38: 1 | N38: 0.25 | P38: 0.006768189509 | Q38: 0.001692047377
A39: COMPETITIVOS Y SOSTENIBLES | B39: FACTURACIÓN LIMPIA | C39: Evaluar competecias y conocimientos del grupo de facturación e incrementar el promedio de calificación en 10% respecto de la línea de base | D39: 34 | E39: 1 | F39: 1 | G39: 1 | H39: 1 | I39: 4 | J39: 1 | N39: 0.25 | P39: 0.006768189509 | Q39: 0.001692047377
A40: COMPETITIVOS Y SOSTENIBLES | B40: FACTURACIÓN LIMPIA | C40: Generar un incremento de un 3% en la facturación neta de la vigencia con respecto a la vigencia anterior | D40: 35 | E40: 0 | F40: 0 | G40: 0 | H40: 1 | I40: 1 | N40: 0 | P40: 0.001692047377 | Q40: 0
A41: COMPETITIVOS Y SOSTENIBLES | B41: FACTURACIÓN LIMPIA | C41: Reducción de la recepción de devoluciones con respecto a la vigencia anterior | D41: 36 | E41: 0 | F41: 1 | G41: 0 | H41: 1 | I41: 2 | N41: 0 | P41: 0.003384094755 | Q41: 0
A42: COMPETITIVOS Y SOSTENIBLES | B42: FACTURACIÓN LIMPIA | C42: Cumplir el cronograma de radicación mensual de cuentas de cobro | D42: 37 | E42: 3 | F42: 3 | G42: 3 | H42: 2 | I42: 11 | J42: 3 | N42: 0.2727272727 | P42: 0.01861252115 | Q42: 0.005076142132
A43: COMPETITIVOS Y SOSTENIBLES | B43: FACTURACIÓN LIMPIA | C43: Gestionar dentro del mes siguiente las facturas pendientes por radicar ante las diferentes EAPB | D43: 38 | E43: 3 | F43: 3 | G43: 3 | H43: 2 | I43: 11 | J43: 3 | N43: 0.2727272727 | P43: 0.01861252115 | Q43: 0.005076142132
A44: COMPETITIVOS Y SOSTENIBLES | B44: GESTIÓN DE COBRO | C44: Realizar cruces de cartera trimestrales con las EAPB que representen el 60% de la facturación de la entidad | D44: 39 | E44: 1 | F44: 1 | G44: 1 | H44: 1 | I44: 4 | J44: 1 | N44: 0.25 | P44: 0.006768189509 | Q44: 0.001692047377
A45: COMPETITIVOS Y SOSTENIBLES | B45: GESTIÓN DE COBRO | C45: identificar las EAPB con acreencias de difícil recaudo a fin de adelantar acciones jurídicas pertinentes | D45: 40 | E45: 0 | F45: 1 | G45: 0 | H45: 0 | I45: 1 | N45: 0 | P45: 0.001692047377 | Q45: 0
A46: COMPETITIVOS Y SOSTENIBLES | B46: GESTIÓN DE COBRO | C46: Dar inicio a las acciones judiciales a las que haya lugar, frente a las EAPB con acreencias de difícil recaudo | D46: 41 | E46: 0 | F46: 0 | G46: 0 | H46: 1 | I46: 1 | N46: 0 | P46: 0.001692047377 | Q46: 0
A47: COMPETITIVOS Y SOSTENIBLES | B47: GESTIÓN DE COBRO | C47: Realizar el cargue de información relativa a la circular 014, y 030 | D47: 42 | E47: 4 | F47: 4 | G47: 4 | H47: 4 | I47: 16 | J47: 4 | N47: 0.25 | P47: 0.02707275804 | Q47: 0.006768189509
A48: COMPETITIVOS Y SOSTENIBLES | B48: GESTIÓN DE COBRO | C48: Seguimiento compromisos circular 130 y 030 a Secretaría de Salud Departamental. | D48: 43 | E48: 3 | F48: 3 | G48: 3 | H48: 3 | I48: 12 | J48: 3 | N48: 0.25 | P48: 0.02030456853 | Q48: 0.005076142132
A49: COMPETITIVOS Y SOSTENIBLES | B49: PROPUESTA DE SERVICIOS | C49: Elaborar costeo de principales procedimientos quirúrgicos de las dos especialidades con mayor demanda y rentabilidad en el hospital. | D49: 44 | E49: 2 | F49: 2 | G49: 2 | H49: 2 | I49: 8 | J49: 2 | N49: 0.25 | P49: 0.01353637902 | Q49: 0.003384094755
A50: COMPETITIVOS Y SOSTENIBLES | B50: PROPUESTA DE SERVICIOS | C50: Con base en costeo realizado, formular paquetes para ofertar a las diferentes EAPB | D50: 45 | E50: 1 | F50: 1 | G50: 1 | H50: 1 | I50: 4 | J50: 1 | N50: 0.25 | P50: 0.006768189509 | Q50: 0.001692047377
A51: COMPETITIVOS Y SOSTENIBLES | B51: GESTIÓN DE EQUIPOS | C51: Implementar el manual de tecnovigilancia | D51: 46 | E51: 0 | F51: 0 | G51: 1 | H51: 0 | I51: 1 | N51: 0 | P51: 0.001692047377 | Q51: 0
A52: COMPETITIVOS Y SOSTENIBLES | B52: GESTIÓN DE EQUIPOS | C52: Elaborar e implementar Plan de mantenimiento anual de equipo biomédico | D52: 47 | E52: 0 | F52: 0 | G52: 0 | H52: 1 | I52: 1 | N52: 0 | P52: 0.001692047377 | Q52: 0
A53: COMPETITIVOS Y SOSTENIBLES | B53: GESTIÓN DE INFRAESTRUCTURA | C53: Solicitud de licencia de construcción para proyecto de infraestructura: Salas de Cirugía y Parto. | D53: 48 | E53: 1 | F53: 0 | G53: 0 | H53: 0 | I53: 1 | J53: 1 | N53: 1 | P53: 0.001692047377 | Q53: 0.001692047377
A54: COMPETITIVOS Y SOSTENIBLES | B54: GESTIÓN DE INFRAESTRUCTURA | C54: Presentar plan arquitectónico para áreas de expansión referente al área covid del HRD | D54: 49 | E54: 0 | F54: 1 | G54: 0 | H54: 0 | I54: 1 | N54: 0 | P54: 0.001692047377 | Q54: 0
A55: COMPETITIVOS Y SOSTENIBLES | B55: GESTIÓN DE INFRAESTRUCTURA | C55: Elaborar informe de cumplimiento al plan de mantenimiento | D55: 50 | E55: 1 | F55: 1 | G55: 1 | H55: 1 | I55: 4 | J55: 1 | N55: 0.25 | P55: 0.006768189509 | Q55: 0.001692047377
A56: COMPETITIVOS Y SOSTENIBLES | B56: CENTRAL DE MEZCLAS | C56: Realizar la validación de la resolución 444 de 2008 | D56: 51 | E56: 1 | F56: 3 | G56: 3 | H56: 3 | I56: 10 | J56: 1 | N56: 0.1 | P56: 0.01692047377 | Q56: 0.001692047377
A57: COMPETITIVOS Y SOSTENIBLES | B57: CENTRAL DE MEZCLAS | C57: Cumplimiento al cronograma de capacitación | D57: 52 | E57: 0 | F57: 0 | G57: 0 | H57: 1 | I57: 1 | N57: 0 | P57: 0.001692047377 | Q57: 0
A58: SOCIALMENTE RESPONSABLES | B58: SISTEMA DE SALUD Y SEGURIDAD EN EL TRABAJO | C58: Ejecutar el sistema de gestión de seguridad y salud en el trabajo acorde al plan de anual de trabajo | D58: 53 | E58: 0 | F58: 0 | G58: 0 | H58: 1 | I58: 1 | N58: 0 | P58: 0.001692047377 | Q58: 0
A59: SOCIALMENTE RESPONSABLES | B59: SISTEMA DE SALUD Y SEGURIDAD EN EL TRABAJO | C59: Generar un soporte de la planeación del presupuesto asignado para el desarrollo de las acciones del SGSST | D59: 54 | E59: 0 | F59: 0 | G59: 0 | H59: 1 | I59: 1 | N59: 0 | P59: 0.001692047377 | Q59: 0
A60: SOCIALMENTE RESPONSABLES | B60: SISTEMA DE SALUD Y SEGURIDAD EN EL TRABAJO | C60: Entregar en documento escrito las responsabilidades en el SGSST, a todos los colaboradores de la ESE de acuerdo a su nivel , de forma virtual | D60: 55 | E60: 0 | F60: 1 | G60: 0 | H60: 0 | I60: 1 | N60: 0 | P60: 0.001692047377 | Q60: 0
A61: SOCIALMENTE RESPONSABLES | B61: SISTEMA DE SALUD Y SEGURIDAD EN EL TRABAJO | C61: Programar y ejecutar las actividades de capacitación para el COPASST | D61: 56 | E61: 0 | F61: 0 | G61: 0 | H61: 1 | I61: 1 | N61: 0 | P61: 0.001692047377 | Q61: 0
A62: SOCIALMENTE RESPONSABLES | B62: SISTEMA DE SALUD Y SEGURIDAD EN EL TRABAJO | C62: Elaborar un programa de capacitación, sobre normatividad legal y control de los riesgos mas frecuentes en la ESE | D62: 57 | E62: 0 | F62: 0 | G62: 0 | H62: 1 | I62: 1 | N62: 0 | P62: 0.001692047377 | Q62: 0
A63: SOCIALMENTE RESPONSABLES | B63: SISTEMA DE SALUD Y SEGURIDAD EN EL TRABAJO | C63: Elaborar un programa de reinducción, sobre normatividad legal en el SGSST y control de los riesgos mas frecuentes en la ESE | D63: 58 | E63: 0 | F63: 0 | G63: 0 | H63: 1 | I63: 1 | N63: 0 | P63: 0.001692047377 | Q63: 0
A64: SOCIALMENTE RESPONSABLES | B64: SISTEMA DE SALUD Y SEGURIDAD EN EL TRABAJO | C64: Actualizar los objetivos y metas del SGSST | D64: 59 | E64: 1 | F64: 0 | G64: 0 | H64: 0 | I64: 1 | J64: 1 | N64: 1 | P64: 0.001692047377 | Q64: 0.001692047377
A65: SOCIALMENTE RESPONSABLES | B65: SISTEMA DE SALUD Y SEGURIDAD EN EL TRABAJO | C65: Realizar rendición de cuentas sobre los avances del SGSST | D65: 60 | E65: 0 | F65: 0 | G65: 1 | H65: 0 | I65: 1 | N65: 0 | P65: 0.001692047377 | Q65: 0
A66: SOCIALMENTE RESPONSABLES | B66: SISTEMA DE SALUD Y SEGURIDAD EN EL TRABAJO | C66: Actualizar matriz legal | D66: 61 | E66: 0 | F66: 0 | G66: 1 | H66: 0 | I66: 1 | N66: 0 | P66: 0.001692047377 | Q66: 0
A67: SOCIALMENTE RESPONSABLES | B67: SISTEMA DE SALUD Y SEGURIDAD EN EL TRABAJO | C67: Actualizar procedimiento de comunicaciones de tal manera que se incluyan formas de interacción con los colaboradores | D67: 62 | E67: 0 | F67: 0 | G67: 1 | H67: 0 | I67: 1 | N67: 0 | P67: 0.001692047377 | Q67: 0
A68: SOCIALMENTE RESPONSABLES | B68: SISTEMA DE SALUD Y SEGURIDAD EN EL TRABAJO | C68: Implementar el proceso para la adquisicion de bienes y servicios en el SGSST | D68: 63 | E68: 0 | F68: 0 | G68: 0 | H68: 1 | I68: 1 | N68: 0 | P68: 0.001692047377 | Q68: 0
A69: SOCIALMENTE RESPONSABLES | B69: SISTEMA DE SALUD Y SEGURIDAD EN EL TRABAJO | C69: Actualizar los requisitos que desde el SGSST deben presentar los colaboradores para el ingreso a la institución | D69: 64 | E69: 0 | F69: 1 | G69: 0 | H69: 0 | I69: 1 | N69: 0 | P69: 0.001692047377 | Q69: 0
A70: SOCIALMENTE RESPONSABLES | B70: SISTEMA DE SALUD Y SEGURIDAD EN EL TRABAJO | C70: Actualización del perfil sociodemografico de los colaboradores de la empresa | D70: 65 | E70: 1 | F70: 0 | G70: 0 | H70: 0 | I70: 1 | J70: 0 | N70: 0 | P70: =IFERROR(I70/SUM($I$6:$I$208),"") -> 0.001692047377 | Q70: =IFERROR(SUM(J70:M70)/SUM($I$6:$I$208),0%) -> 0
A71: SOCIALMENTE RESPONSABLES | B71: SISTEMA DE SALUD Y SEGURIDAD EN EL TRABAJO | C71: Actualizar matriz de peligros teniendo en cuenta nuevas areas de expansion | D71: =ROW()-5 -> 66 | E71: 0 | F71: 1 | G71: 0 | H71: 0 | I71: =SUM(E71:H71) -> 1 | N71: =IFERROR(SUM(J71:M71)/I71,0%) -> 0 | P71: 0.001692047377 | Q71: 0
A72: SOCIALMENTE RESPONSABLES | B72: SISTEMA DE SALUD Y SEGURIDAD EN EL TRABAJO | C72: Actualizar SVE riesgo biologico incluida la vigilancia de COVID 19 | D72: 67 | E72: 0 | F72: 1 | G72: 0 | H72: 0 | I72: 1 | N72: 0 | P72: 0.001692047377 | Q72: 0
A73: SOCIALMENTE RESPONSABLES | B73: SISTEMA DE SALUD Y SEGURIDAD EN EL TRABAJO | C73: Diseñar un sistema de vigilancia epidemiologica para el riesgo psicosocial en los empleados públicos e implementar acciones para disminuir los factores de riesgo | D73: 68 | E73: 0 | F73: 0 | G73: 1 | H73: 0 | I73: 1 | N73: 0 | P73: 0.001692047377 | Q73: 0
A74: SOCIALMENTE RESPONSABLES | B74: SISTEMA DE SALUD Y SEGURIDAD EN EL TRABAJO | C74: Realizar y ejecutar un plan de actividades de promoción y prevención según los riesgos encontrados en la empresa y las caracteristicas de la población | D74: 69 | E74: 0 | F74: 1 | G74: 0 | H74: 0 | I74: 1 | N74: 0 | P74: 0.001692047377 | Q74: 0
A75: SOCIALMENTE RESPONSABLES | B75: SISTEMA DE SALUD Y SEGURIDAD EN EL TRABAJO | C75: Realizar estudio previo para la contratación de las evaluaciones medicas periodicas ocupacionales a los servidores públicos de la empresa | D75: 70 | E75: 0 | F75: 0 | G75: 1 | H75: 0 | I75: 1 | N75: 0 | P75: 0.001692047377 | Q75: 0
A76: SOCIALMENTE RESPONSABLES | B76: SISTEMA DE SALUD Y SEGURIDAD EN EL TRABAJO | C76: Realizar seguimiento a las restricciones y recomendaciones generadas por médicos ARL y EPS | D76: 71 | E76: 0 | F76: 0 | G76: 1 | H76: 1 | I76: 2 | N76: 0 | P76: 0.003384094755 | Q76: 0
A77: SOCIALMENTE RESPONSABLES | B77: SISTEMA DE SALUD Y SEGURIDAD EN EL TRABAJO | C77: Documentar e implementar el procedimiento mediante el cual se realizan las investigaciones de accidentes y enfermedades laborales | D77: 72 | E77: 0 | F77: 1 | G77: 0 | H77: 0 | I77: 1 | N77: 0 | P77: 0.001692047377 | Q77: 0
A78: SOCIALMENTE RESPONSABLES | B78: SISTEMA DE SALUD Y SEGURIDAD EN EL TRABAJO | C78: Documentar e implementar el procedimiento para la recoleccion de información que permita construir lso indicadores de obligatorio cumplimiento previstos en la Res 0312 de 2019 | D78: 73 | E78: 1 | F78: 0 | G78: 0 | H78: 0 | I78: 1 | J78: 0 | N78: 0 | P78: 0.001692047377 | Q78: 0
A79: SOCIALMENTE RESPONSABLES | B79: SISTEMA DE SALUD Y SEGURIDAD EN EL TRABAJO | C79: Mantener actualizados los indicadores de obligatorio cumplimiento previstos en la Resolucion 0312 de 2019 e informar el seguimiento de estos a trabajadores y al nivel directivo | D79: 74 | E79: 0 | F79: 0 | G79: 0 | H79: 1 | I79: 1 | N79: 0 | P79: 0.001692047377 | Q79: 0
A80: SOCIALMENTE RESPONSABLES | B80: SISTEMA DE SALUD Y SEGURIDAD EN EL TRABAJO | C80: Generar un procedimiento para establecer la metodologia para la identificación de peligros, evaluación y valoración de los riesgos, garantizando la participación de todos los nIveles de la organización | D80: 75 | E80: 1 | F80: 0 | G80: 0 | H80: 0 | I80: 1 | J80: 0 | N80: 0 | P80: 0.001692047377 | Q80: 0
A81: SOCIALMENTE RESPONSABLES | B81: SISTEMA DE SALUD Y SEGURIDAD EN EL TRABAJO | C81: Identificar las sustancias carcinogenas o con toxicidad aguda y actualziar la ficha de seguridad bajo el SGA | D81: 76 | E81: 1 | F81: 0 | G81: 0 | H81: 0 | I81: 1 | J81: 1 | N81: 1 | P81: 0.001692047377 | Q81: 0.001692047377
A82: SOCIALMENTE RESPONSABLES | B82: SISTEMA DE SALUD Y SEGURIDAD EN EL TRABAJO | C82: Realizar medicion ambiental de radiación ionizante y generar acciones de mejora a partir de los resultados | D82: 77 | E82: 0 | F82: 1 | G82: 0 | H82: 0 | I82: 1 | N82: 0 | P82: 0.001692047377 | Q82: 0
A83: SOCIALMENTE RESPONSABLES | B83: SISTEMA DE SALUD Y SEGURIDAD EN EL TRABAJO | C83: Revisar protocolos procedimientos y fichas en aspectos referidos al SGSST: reporte de accidentes laborales, reportes de enfermedad laboral, reporte de incidentes laborales, afiliación a riesgos laborales | D83: 78 | E83: 1 | F83: 1 | G83: 1 | H83: 1 | I83: 4 | J83: 1 | N83: 0.25 | P83: 0.006768189509 | Q83: 0.001692047377
A84: SOCIALMENTE RESPONSABLES | B84: SISTEMA DE SALUD Y SEGURIDAD EN EL TRABAJO | C84: Realizar un plan de inspecciones conjuntas con el COPASST de las instalaciones, maquinas, equipos del COPASST | D84: 79 | E84: 1 | F84: 0 | G84: 0 | H84: 0 | I84: 1 | J84: 1 | N84: 1 | P84: 0.001692047377 | Q84: 0.001692047377
A85: SOCIALMENTE RESPONSABLES | B85: SISTEMA DE SALUD Y SEGURIDAD EN EL TRABAJO | C85: Mantener la entrega de EPP, sus registros en la plataforma y los informes pertienentes a las entidades que los solicitan según la normatividad | D85: 80 | E85: 3 | F85: 3 | G85: 3 | H85: 3 | I85: 12 | J85: 3 | N85: 0.25 | P85: 0.02030456853 | Q85: 0.005076142132
A86: SOCIALMENTE RESPONSABLES | B86: SISTEMA DE SALUD Y SEGURIDAD EN EL TRABAJO | C86: Socializar el plan de prevención preparación y respuesta ante emergencias a través de la plataforma AVA del hospital | D86: 81 | E86: 0 | F86: 0 | G86: 0 | H86: 1 | I86: 1 | N86: 0 | P86: 0.001692047377 | Q86: 0
A87: SOCIALMENTE RESPONSABLES | B87: SISTEMA DE SALUD Y SEGURIDAD EN EL TRABAJO | C87: conformación capacitación y entrenamiento de la brigada de emergencias | D87: 82 | E87: 0 | F87: 0 | G87: 0 | H87: 1 | I87: 1 | N87: 0 | P87: 0.001692047377 | Q87: 0
A88: SOCIALMENTE RESPONSABLES | B88: SISTEMA DE SALUD Y SEGURIDAD EN EL TRABAJO | C88: Realizar auditoria interna a las empresas que tienen personal en la institución 1 en empresas de menos de 10 trabajadores, 1 en empresas de 10 a 50 trabajadores, 1 auditoria en empresa de mas de 50 trbajadores | D88: 83 | E88: 0 | F88: 0 | G88: 3 | H88: 0 | I88: 3 | N88: 0 | P88: 0.005076142132 | Q88: 0
A89: SOCIALMENTE RESPONSABLES | B89: SISTEMA DE SALUD Y SEGURIDAD EN EL TRABAJO | C89: Realizar el reporte de accidentes laborales y enfermedades laborales que se presenten en los empleados públicos y contratistas por prestación de servicios | D89: 84 | E89: 0 | F89: 0 | G89: 1 | H89: 1 | I89: 2 | N89: 0 | P89: 0.003384094755 | Q89: 0
A90: SOCIALMENTE RESPONSABLES | B90: SISTEMA DE SALUD Y SEGURIDAD EN EL TRABAJO | C90: Realizar seguimiento al cierre de los casos ATEL con la ARL POSITIVA | D90: 85 | E90: 0 | F90: 0 | G90: 1 | H90: 1 | I90: 2 | N90: 0 | P90: 0.003384094755 | Q90: 0
A91: SOCIALMENTE RESPONSABLES | B91: SISTEMA DE SALUD Y SEGURIDAD EN EL TRABAJO | C91: Realizar el proceso de convocatoria para la conformación del COPASST | D91: 86 | E91: 0 | F91: 1 | G91: 0 | H91: 0 | I91: 1 | N91: 0 | P91: 0.001692047377 | Q91: 0
A92: SOCIALMENTE RESPONSABLES | B92: SISTEMA DE SALUD Y SEGURIDAD EN EL TRABAJO | C92: Realiar el estudio tecnico MATRIZ DE CARGAS tiempos y movimientos del proceso SIGASST | D92: 87 | E92: 1 | F92: 0 | G92: 0 | H92: 0 | I92: 1 | J92: 0 | N92: 0 | P92: 0.001692047377 | Q92: 0
A93: SOCIALMENTE RESPONSABLES | B93: SISTEMA DE SALUD Y SEGURIDAD EN EL TRABAJO | C93: Realizar seguimiento a los cambios que se presenten en la implementación del SGSST | D93: 88 | E93: 0 | F93: 0 | G93: 0 | H93: 1 | I93: 1 | N93: 0 | P93: 0.001692047377 | Q93: 0
A94: SOCIALMENTE RESPONSABLES | B94: SISTEMA DE SALUD Y SEGURIDAD EN EL TRABAJO | C94: Realizar evaluación del SGSST en la plataforma del fondode riesgos laborales de la vigencia 2020 | D94: 89 | E94: 1 | F94: 0 | G94: 0 | H94: 0 | I94: 1 | J94: 1 | N94: 1 | P94: 0.001692047377 | Q94: 0.001692047377
A95: SOCIALMENTE RESPONSABLES | B95: SISTEMA DE SALUD Y SEGURIDAD EN EL TRABAJO | C95: Revisión anual por la alta dirección resultados y alcance de la auditoria | D95: 90 | E95: 0 | F95: 0 | G95: 0 | H95: 1 | I95: 1 | N95: 0 | P95: 0.001692047377 | Q95: 0
A96: SOCIALMENTE RESPONSABLES | B96: SISTEMA DE GESTIÓN AMBIENTAL | C96: Elaborar y ejecutar el plan de acción ambiental para la vigencia 2021 | D96: 91 | E96: 0 | F96: 0 | G96: 0 | H96: 1 | I96: 1 | N96: 0 | P96: 0.001692047377 | Q96: 0
A97: SOCIALMENTE RESPONSABLES | B97: SISTEMA DE GESTIÓN AMBIENTAL | C97: reunion del comité de gestion ambiental y sanitaria GAGS, mensual | D97: 92 | E97: 3 | F97: 3 | G97: 3 | H97: 3 | I97: 12 | J97: 3 | N97: 0.25 | P97: 0.02030456853 | Q97: 0.005076142132
A98: SOCIALMENTE RESPONSABLES | B98: SISTEMA DE GESTIÓN AMBIENTAL | C98: Actualizar normograma ambiental | D98: 93 | E98: 0 | F98: 1 | G98: 0 | H98: 0 | I98: 1 | N98: 0 | P98: 0.001692047377 | Q98: 0
A99: SOCIALMENTE RESPONSABLES | B99: SISTEMA DE GESTIÓN AMBIENTAL | C99: Actualizar PGIRASA con el nuevo codigo de colores, nuevas areas de expansión, actualización de inventario de residuos y lineamientos en emergencias ambientales | D99: 94 | E99: 0 | F99: 0 | G99: 0 | H99: 1 | I99: 1 | N99: 0 | P99: 0.001692047377 | Q99: 0
A100: SOCIALMENTE RESPONSABLES | B100: SISTEMA DE GESTIÓN AMBIENTAL | C100: Realizar auditorias de gestión de residuos mensual | D100: 95 | E100: 3 | F100: 3 | G100: 3 | H100: 3 | I100: 12 | J100: 3 | N100: 0.25 | P100: 0.02030456853 | Q100: 0.005076142132
A101: SOCIALMENTE RESPONSABLES | B101: SISTEMA DE GESTIÓN AMBIENTAL | C101: Llevar los indicadores de consumo de energia, agua, gas y de generación de residuos y con base en resultados establecer planes de mejora si hay lugar PRESENTAR INFORME TRIMESTRAL | D101: 96 | E101: 3 | F101: 3 | G101: 3 | H101: 3 | I101: 12 | J101: 3 | N101: 0.25 | P101: 0.02030456853 | Q101: 0.005076142132
A102: SOCIALMENTE RESPONSABLES | B102: SISTEMA DE GESTIÓN AMBIENTAL | C102: Realizar el registro anual de generador de residuos de las tres sedes, de acuerdo a la normatividad legal vigente | D102: 97 | E102: 1 | F102: 0 | G102: 0 | H102: 0 | I102: 1 | J102: 1 | N102: 1 | P102: 0.001692047377 | Q102: 0.001692047377
A103: SOCIALMENTE RESPONSABLES | B103: SISTEMA DE GESTIÓN AMBIENTAL | C103: Realizar y enviar el informe de gestión de residuos a la secretaria de salud de Boyacá en los plazos determinados por esta entidad (sedes Santa Rosa y Sativasur) | D103: 98 | E103: 1 | F103: 0 | G103: 0 | H103: 0 | I103: 1 | J103: 1 | N103: 1 | P103: 0.001692047377 | Q103: 0.001692047377
A104: SOCIALMENTE RESPONSABLES | B104: SISTEMA DE GESTIÓN AMBIENTAL | C104: Realizar y enviar el informe de gestión de residuos a la secretaria de salud de Duitama en los plazos determinados por esta entidad Duitama | D104: 99 | E104: 1 | F104: 0 | G104: 0 | H104: 0 | I104: 1 | J104: 1 | N104: 1 | P104: 0.001692047377 | Q104: 0.001692047377
A105: SOCIALMENTE RESPONSABLES | B105: SISTEMA DE GESTIÓN AMBIENTAL | C105: Capacitar a los trabajadores en lo referente a disposicion de residuos y nuevo codigo de colores | D105: 100 | E105: 0 | F105: 0 | G105: 0 | H105: 1 | I105: 1 | N105: 0 | P105: 0.001692047377 | Q105: 0
A106: SOCIALMENTE RESPONSABLES | B106: SISTEMA DE GESTIÓN AMBIENTAL | C106: Actualizar inventario de contenedores para la compra y reposición de contenedores dañados | D106: 101 | E106: 0 | F106: 0 | G106: 1 | H106: 0 | I106: 1 | N106: 0 | P106: 0.001692047377 | Q106: 0
A107: SOCIALMENTE RESPONSABLES | B107: SISTEMA DE GESTIÓN AMBIENTAL | C107: Comprar los contenedores requeridos de acuerdo al estudio tecnico realziado por el lider SIGASST | D107: 102 | E107: 0 | F107: 0 | G107: 1 | H107: 0 | I107: 1 | N107: 0 | P107: 0.001692047377 | Q107: 0
A108: SOCIALMENTE RESPONSABLES | B108: SISTEMA DE GESTIÓN AMBIENTAL | C108: Realizar auditoria de residuos de todas las áreas | D108: 103 | E108: 0 | F108: 0 | G108: 0 | H108: 1 | I108: 1 | N108: 0 | P108: 0.001692047377 | Q108: 0
A109: SOCIALMENTE RESPONSABLES | B109: SISTEMA DE GESTIÓN AMBIENTAL | C109: Realizar visita de auditoria a gestor externo de residuos peligrosos | D109: 104 | E109: 0 | F109: 0 | G109: 1 | H109: 0 | I109: 1 | N109: 0 | P109: 0.001692047377 | Q109: 0
A110: SOCIALMENTE RESPONSABLES | B110: SISTEMA DE GESTIÓN AMBIENTAL | C110: Revisar Kits de atención de emergencias ambientales por rupturas de bolsa o derrame de sustancias o material peligrosos | D110: 105 | E110: 0 | F110: 0 | G110: 0 | H110: 1 | I110: 1 | N110: 0 | P110: 0.001692047377 | Q110: 0
A111: SOCIALMENTE RESPONSABLES | B111: SISTEMA DE GESTIÓN AMBIENTAL | C111: Actualizar el listado de sustancias químicas | D111: 106 | E111: 0 | F111: 0 | G111: 1 | H111: 0 | I111: 1 | N111: 0 | P111: 0.001692047377 | Q111: 0
A112: SOCIALMENTE RESPONSABLES | B112: SISTEMA DE GESTIÓN AMBIENTAL | C112: solicitar a los proveedores de sustancias quimicas, presenten la ficha de seguridad, bajo los parametros establecidos en el sistema globalmente armonizado | D112: 107 | E112: 0 | F112: 0 | G112: 1 | H112: 0 | I112: 1 | N112: 0 | P112: 0.001692047377 | Q112: 0
A113: SOCIALMENTE RESPONSABLES | B113: SISTEMA DE GESTIÓN AMBIENTAL | C113: Realizar capacitación en gestión segura de sustancias químicas al personal de mantenimiento, servicios generales y laboratorio clinico . Y Sistema globalmente armonizado | D113: 108 | E113: 0 | F113: 0 | G113: 1 | H113: 0 | I113: 1 | N113: 0 | P113: 0.001692047377 | Q113: 0
A114: SOCIALMENTE RESPONSABLES | B114: SISTEMA DE GESTIÓN AMBIENTAL | C114: realizar inspecciones de control de plagas | D114: 109 | E114: 3 | F114: 3 | G114: 3 | H114: 3 | I114: 12 | J114: 3 | N114: 0.25 | P114: 0.02030456853 | Q114: 0.005076142132
A115: SOCIALMENTE RESPONSABLES | B115: SISTEMA DE GESTIÓN AMBIENTAL | C115: Normalizar el manual de lavado de tanques y socializarlo con el area de mantenimiento | D115: 110 | E115: 0 | F115: 1 | G115: 0 | H115: 0 | I115: 1 | N115: 0 | P115: 0.001692047377 | Q115: 0
A116: SOCIALMENTE RESPONSABLES | B116: SISTEMA DE GESTIÓN AMBIENTAL | C116: Realizar estudio de vertimientos líquidos y enviarlo al Gobierno Municipal de acuerdo a lo descrito en la norma | D116: 111 | E116: 1 | F116: 0 | G116: 0 | H116: 0 | I116: 1 | J116: 1 | N116: 1 | P116: 0.001692047377 | Q116: 0.001692047377
A117: ADMINISTRATIVAMENTE FUERTES | B117: TALENTO HUMANO: Gestión estratégica del talento humano | C117: Ejecutar el plan estratégico de talento humano | D117: 112 | E117: 0 | F117: 0 | G117: 0 | H117: 1 | I117: 1 | N117: 0 | P117: 0.001692047377 | Q117: 0
A118: ADMINISTRATIVAMENTE FUERTES | B118: TALENTO HUMANO: Gestión estratégica del talento humano | C118: Formular politica de Gestion Estrategica de Talento Humano | D118: 113 | E118: 0 | F118: 1 | G118: 0 | H118: 0 | I118: 1 | N118: 0 | P118: 0.001692047377 | Q118: 0
A119: ADMINISTRATIVAMENTE FUERTES | B119: TALENTO HUMANO: Gestión estratégica del talento humano | C119: Fortalecer e implementar plan de bienestar y de capacitaciones para el 2021 en el programa calidad de vida laboral, con actividades relacionas con /desvinculacion laboral asistida y retiro - progarma de pre pensionados) | D119: 114 | E119: 1 | F119: 0 | G119: 0 | H119: 0 | I119: 1 | J119: 0 | N119: 0 | P119: 0.001692047377 | Q119: 0
A120: ADMINISTRATIVAMENTE FUERTES | B120: TALENTO HUMANO: Gestión estratégica del talento humano | C120: Estructurar procedimiento que incluya la planeación del recurso humano necesario para la realización de las actividades la institución | D120: 115 | E120: 0 | F120: 1 | G120: 0 | H120: 0 | I120: 1 | N120: 0 | P120: 0.001692047377 | Q120: 0
A121: ADMINISTRATIVAMENTE FUERTES | B121: TALENTO HUMANO: Gestión estratégica del talento humano | C121: Implementar el plan de incentivos que permitan comprometer a los colaboradores al mejoramiento continuo | D121: 116 | E121: 1 | F121: 0 | G121: 0 | H121: 0 | I121: 1 | N121: 0 | P121: 0.001692047377 | Q121: 0
A122: ADMINISTRATIVAMENTE FUERTES | B122: TALENTO HUMANO: Gestión estratégica del talento humano | C122: Elaborar de matriz de caracterización del talento humano | D122: 117 | E122: 0 | F122: 1 | G122: 0 | H122: 0 | I122: 1 | N122: 0 | P122: 0.001692047377 | Q122: 0
A123: ADMINISTRATIVAMENTE FUERTES | B123: TALENTO HUMANO: Gestión estratégica del talento humano | C123: Monitoriar el cumplimiento de la evaluación de desempeño de los servidores públicos inscritos en carrera administrativa en sus distintas fases. | D123: 118 | E123: 1 | F123: 0 | G123: 1 | H123: 0 | I123: 2 | J123: 1 | N123: 0.5 | P123: 0.003384094755 | Q123: 0.001692047377
A124: ADMINISTRATIVAMENTE FUERTES | B124: TALENTO HUMANO: Gestión estratégica del talento humano | C124: Realizar estudio tecnico y finaciero para formalización laboral | D124: 119 | E124: 0 | F124: 0 | G124: 1 | H124: 0 | I124: 1 | N124: 0 | P124: 0.001692047377 | Q124: 0
A125: ADMINISTRATIVAMENTE FUERTES | B125: TALENTO HUMANO: Gestión estratégica del talento humano | C125: Elaborar el plan de inducción / reinducción, acorde a las competencias de cada cargo, y generar registro de la inducción recibida | D125: 120 | E125: 0 | F125: 1 | G125: 0 | H125: 0 | I125: 1 | N125: 0 | P125: 0.001692047377 | Q125: 0
A126: ADMINISTRATIVAMENTE FUERTES | B126: TALENTO HUMANO: Gestión estratégica del talento humano | C126: Garantizar la custodia de los acuerdos de gestion dentro de las hojas de vida de los servidores públicos que los firman | D126: 121 | E126: 3 | F126: 3 | G126: 3 | H126: 3 | I126: 12 | J126: 3 | N126: 0.25 | P126: 0.02030456853 | Q126: 0.005076142132
A127: ADMINISTRATIVAMENTE FUERTES | B127: TALENTO HUMANO: Gestión estratégica del talento humano | C127: Realizar actividad para conmemorar el dia nacional de servidor público de acuerdo a Resolució n286 5de 2013 (DUR 1083 DE 2015) | D127: 122 | E127: 0 | F127: 1 | G127: 0 | H127: 0 | I127: 1 | N127: 0 | P127: 0.001692047377 | Q127: 0
A128: ADMINISTRATIVAMENTE FUERTES | B128: TALENTO HUMANO: Gestión estratégica del talento humano | C128: Dar a conocer a los trabajadores el programa "Servimos" y motivar su participación | D128: 123 | E128: 0 | F128: 1 | G128: 0 | H128: 1 | I128: 2 | N128: 0 | P128: 0.003384094755 | Q128: 0
A129: ADMINISTRATIVAMENTE FUERTES | B129: TALENTO HUMANO: Gestión estratégica del talento humano | C129: Enviar informes sobre actividades de la comisión de personal a la CNSC | D129: 124 | E129: 1 | F129: 1 | G129: 1 | H129: 1 | I129: 4 | J129: 1 | N129: 0.25 | P129: 0.006768189509 | Q129: 0.001692047377
A130: ADMINISTRATIVAMENTE FUERTES | B130: TALENTO HUMANO: Gestión estratégica del talento humano | C130: Realizar medicion de clima laboral y socializar resultados | D130: 125 | E130: 0 | F130: 0 | G130: 0 | H130: 1 | I130: 1 | N130: 0 | P130: 0.001692047377 | Q130: 0
A131: ADMINISTRATIVAMENTE FUERTES | B131: TALENTO HUMANO: Gestión estratégica del talento humano | C131: Otorgar un reconocimiento de la trayectoria laboral y agradecimiento por el servicio prestado a las personas que se desvinculan | D131: 126 | E131: 0 | F131: 0 | G131: 0 | H131: 1 | I131: 1 | N131: 0 | P131: 0.001692047377 | Q131: 0
A132: ADMINISTRATIVAMENTE FUERTES | B132: TALENTO HUMANO: Gestión estratégica del talento humano | C132: Dar cumplimiento al plan de trabajo anual del sistema de seguridad y salud en el trabajo. | D132: 127 | E132: 0 | F132: 0 | G132: 0 | H132: 1 | I132: 1 | N132: 0 | P132: 0.001692047377 | Q132: 0
A133: ADMINISTRATIVAMENTE FUERTES | B133: TALENTO HUMANO: Política de integridad | C133: Adoptar política de Integridad | D133: 128 | E133: 1 | F133: 0 | G133: 0 | H133: 0 | I133: 1 | J133: 1 | N133: 1 | P133: 0.001692047377 | Q133: 0.001692047377
A134: ADMINISTRATIVAMENTE FUERTES | B134: TALENTO HUMANO: Política de integridad | C134: Realizar actividades o ejercicios participativos para la divulgación y adherencia de los valores y principios adoptados en código de integridad | D134: 129 | E134: 4 | F134: 4 | G134: 5 | H134: 5 | I134: 18 | J134: 0 | N134: 0 | P134: =IFERROR(I134/SUM($I$6:$I$208),"") -> 0.03045685279 | Q134: =IFERROR(SUM(J134:M134)/SUM($I$6:$I$208),0%) -> 0
A135: ADMINISTRATIVAMENTE FUERTES | B135: TALENTO HUMANO: Política de integridad | C135: Aplicar encuesta para verificar resultados de las actividades de socialización del código de integridad | D135: =ROW()-5 -> 130 | E135: 0 | F135: 0 | G135: 0 | H135: 1 | I135: =SUM(E135:H135) -> 1 | N135: =IFERROR(SUM(J135:M135)/I135,0%) -> 0 | P135: 0.001692047377 | Q135: 0
A136: ADMINISTRATIVAMENTE FUERTES | B136: DIRECCIONAMIENTO ESTRATÉGICO Y PLANEACIÓN: Planeación institucional | C136: Elaboración de diagnóstico de la entidad y caracterización de usuarios | D136: 131 | E136: 0 | F136: 1 | G136: 0 | H136: 0 | I136: 1 | N136: 0 | P136: 0.001692047377 | Q136: 0
A137: ADMINISTRATIVAMENTE FUERTES | B137: DIRECCIONAMIENTO ESTRATÉGICO Y PLANEACIÓN: Planeación institucional | C137: Formulación de planes operativos anuales. | D137: 132 | E137: 0 | F137: 0 | G137: 0 | H137: 1 | I137: 1 | N137: 0 | P137: 0.001692047377 | Q137: 0
A138: ADMINISTRATIVAMENTE FUERTES | B138: DIRECCIONAMIENTO ESTRATÉGICO Y PLANEACIÓN: Planeación institucional | C138: Formular y publicar el Plan de Anticorrupción y atención al ciudadano | D138: 133 | E138: 1 | F138: 0 | G138: 0 | H138: 0 | I138: 1 | J138: 1 | N138: 1 | P138: 0.001692047377 | Q138: 0.001692047377
A139: ADMINISTRATIVAMENTE FUERTES | B139: DIRECCIONAMIENTO ESTRATÉGICO Y PLANEACIÓN: Planeación institucional | C139: Formulación de planes de acción MIPG para la vigencia 2021 | D139: 134 | E139: 1 | F139: 0 | G139: 0 | H139: 0 | I139: 1 | J139: 1 | N139: 1 | P139: 0.001692047377 | Q139: 0.001692047377
A140: ADMINISTRATIVAMENTE FUERTES | B140: DIRECCIONAMIENTO ESTRATÉGICO Y PLANEACIÓN: Planeación institucional | C140: Análisis de información obtenida de encuesta para identificar necesidades de información y/o servicios por parte de usuarios | D140: 135 | E140: 1 | F140: 1 | G140: 1 | H140: 1 | I140: 4 | J140: 0 | N140: 0 | P140: 0.006768189509 | Q140: 0
A141: ADMINISTRATIVAMENTE FUERTES | B141: DIRECCIONAMIENTO ESTRATÉGICO Y PLANEACIÓN: Planeación institucional | C141: Formulación del PAMEC institucional | D141: 136 | E141: 1 | F141: 0 | G141: 0 | H141: 0 | I141: 1 | J141: 1 | N141: 1 | P141: 0.001692047377 | Q141: 0.001692047377
A142: ADMINISTRATIVAMENTE FUERTES | B142: DIRECCIONAMIENTO ESTRATÉGICO Y PLANEACIÓN: Planeación institucional | C142: Revisión y actualización de políticas institucionales | D142: 137 | E142: 0 | F142: 0 | G142: 0 | H142: 1 | I142: 1 | N142: 0 | P142: 0.001692047377 | Q142: 0
A143: ADMINISTRATIVAMENTE FUERTES | B143: DIRECCIONAMIENTO ESTRATÉGICO Y PLANEACIÓN: Planeación institucional | C143: Crear, revisar, actualizar y socializar comités institucionales según necesidad | D143: 138 | E143: 0 | F143: 0 | G143: 0 | H143: 1 | I143: 1 | N143: 0 | P143: 0.001692047377 | Q143: 0
A144: ADMINISTRATIVAMENTE FUERTES | B144: DIRECCIONAMIENTO ESTRATÉGICO Y PLANEACIÓN: Gestión Presupuestal y eficiencia del gasto público | C144: Formulación de presupuesto para la vigencia 2022 conforme lineamientos y cronograma emitidos por la Secretaría de Hacienda del departamento de Boyacá | D144: 139 | E144: 0 | F144: 0 | G144: 0 | H144: 1 | I144: 1 | N144: 0 | P144: 0.001692047377 | Q144: 0
A145: ADMINISTRATIVAMENTE FUERTES | B145: DIRECCIONAMIENTO ESTRATÉGICO Y PLANEACIÓN: Gestión Presupuestal y eficiencia del gasto público | C145: Realizar modificaciones al presupuesto aprobado para la vigencia 2021, conforme a requerimientos de la institución | D145: 140 | E145: 0 | F145: 0 | G145: 0 | H145: 1 | I145: 1 | N145: 0 | P145: 0.001692047377 | Q145: 0
A146: ADMINISTRATIVAMENTE FUERTES | B146: GESTIÓN CON VALORES PARA RESULTADOS: Fortalecimiento organizacional y simplificación de procesos | C146: Realizar inventario de procesos y procedimientos pendientes por actualizar y formular | D146: 141 | E146: 0 | F146: 0 | G146: 1 | H146: 0 | I146: 1 | N146: 0 | P146: 0.001692047377 | Q146: 0
A147: ADMINISTRATIVAMENTE FUERTES | B147: GESTIÓN CON VALORES PARA RESULTADOS: Fortalecimiento organizacional y simplificación de procesos | C147: De forma concertada con líderes, definir cronograma de formulación y /o actualización de procesos y procedimientos pendientes | D147: 142 | E147: 1 | F147: 0 | G147: 0 | H147: 0 | I147: 1 | J147: 1 | N147: 1 | P147: 0.001692047377 | Q147: 0.001692047377
A148: ADMINISTRATIVAMENTE FUERTES | B148: GESTIÓN CON VALORES PARA RESULTADOS: Fortalecimiento organizacional y simplificación de procesos | C148: Dar cumplimiento a cronograma propuesto | D148: 143 | E148: 0 | F148: 0 | G148: 0 | H148: 1 | I148: 1 | N148: 0 | P148: 0.001692047377 | Q148: 0
A149: ADMINISTRATIVAMENTE FUERTES | B149: GESTIÓN CON VALORES PARA RESULTADOS: Gobierno digital | C149: Socializar e implementar el Plan estratégico de Tecnología de la Información - PETI- | D149: 144 | E149: 0 | F149: 0 | G149: 0 | H149: 1 | I149: 1 | N149: 0 | P149: 0.001692047377 | Q149: 0
A150: ADMINISTRATIVAMENTE FUERTES | B150: GESTIÓN CON VALORES PARA RESULTADOS: Seguridad Digital | C150: Socializar la política de seguridad de la información y protección de datos | D150: 145 | E150: 0 | F150: 0 | G150: 0 | H150: 1 | I150: 1 | N150: 0 | P150: 0.001692047377 | Q150: 0
A151: ADMINISTRATIVAMENTE FUERTES | B151: GESTIÓN CON VALORES PARA RESULTADOS: Seguridad Digital | C151: Socializar el Plan estratégico de seguridad de la información. | D151: 146 | E151: 0 | F151: 0 | G151: 0 | H151: 1 | I151: 1 | N151: 0 | P151: 0.001692047377 | Q151: 0
A152: ADMINISTRATIVAMENTE FUERTES | B152: GESTIÓN CON VALORES PARA RESULTADOS: Defensa Jurídica | C152: Realizar reuniones de comité de conciliaciones con la periodicidad establecida en la normatividad actual | D152: 147 | E152: 4 | F152: 6 | G152: 6 | H152: 4 | I152: 20 | J152: 4 | N152: 0.2 | P152: 0.03384094755 | Q152: 0.006768189509
A153: ADMINISTRATIVAMENTE FUERTES | B153: GESTIÓN CON VALORES PARA RESULTADOS: Defensa Jurídica | C153: Presentar informe de estado de procesos judiciales ante el comité de conciliaciones. | D153: 148 | E153: 0 | F153: 1 | G153: 0 | H153: 1 | I153: 2 | N153: 0 | P153: 0.003384094755 | Q153: 0
A154: ADMINISTRATIVAMENTE FUERTES | B154: GESTIÓN CON VALORES PARA RESULTADOS: Defensa Jurídica | C154: Presentar informe de proyección de contingencias judiciales a la oficina de contabilidad | D154: 149 | E154: 1 | F154: 1 | G154: 1 | H154: 1 | I154: 4 | J154: 1 | N154: 0.25 | P154: 0.006768189509 | Q154: 0.001692047377
A155: ADMINISTRATIVAMENTE FUERTES | B155: GESTIÓN CON VALORES PARA RESULTADOS: Defensa Jurídica | C155: Dar respuesta de tutelas dentro de los términos previstos en la ley | D155: 150 | E155: 3 | F155: 3 | G155: 3 | H155: 3 | I155: 12 | J155: 3 | N155: 0.25 | P155: 0.02030456853 | Q155: 0.005076142132
A156: ADMINISTRATIVAMENTE FUERTES | B156: GESTIÓN CON VALORES PARA RESULTADOS: Defensa Jurídica | C156: Actualización permanente del estado de procesos judiciales en al aplicativo SIHO | D156: 151 | E156: 3 | F156: 3 | G156: 3 | H156: 3 | I156: 12 | J156: 3 | N156: 0.25 | P156: 0.02030456853 | Q156: 0.005076142132
A157: ADMINISTRATIVAMENTE FUERTES | B157: GESTIÓN CON VALORES PARA RESULTADOS: Servicio al ciudadano | C157: Definir cronograma de trabajo propuesto para la audiencia de rendición de cuentas | D157: 152 | E157: 1 | F157: 0 | G157: 0 | H157: 0 | I157: 1 | J157: 1 | N157: 1 | P157: 0.001692047377 | Q157: 0.001692047377
A158: ADMINISTRATIVAMENTE FUERTES | B158: GESTIÓN CON VALORES PARA RESULTADOS: Servicio al ciudadano | C158: Definir canales y metodologías que se emplearán para desarrollar las actividades de rendición de cuentas | D158: 153 | E158: 1 | F158: 0 | G158: 0 | H158: 0 | I158: 1 | J158: 1 | N158: 1 | P158: 0.001692047377 | Q158: 0.001692047377
A159: ADMINISTRATIVAMENTE FUERTES | B159: GESTIÓN CON VALORES PARA RESULTADOS: Servicio al ciudadano | C159: Consolidar la información con el equipo interno de apoyo para presentar RDC | D159: 154 | E159: 1 | F159: 0 | G159: 0 | H159: 0 | I159: 1 | J159: 1 | N159: 1 | P159: 0.001692047377 | Q159: 0.001692047377
A160: ADMINISTRATIVAMENTE FUERTES | B160: GESTIÓN CON VALORES PARA RESULTADOS: Servicio al ciudadano | C160: Estructurar presentación definitiva y Publicarla oportunamente, en la página web de la entidad. | D160: 155 | E160: 1 | F160: 0 | G160: 0 | H160: 0 | I160: 1 | J160: 1 | N160: 1 | P160: 0.001692047377 | Q160: 0.001692047377
A161: ADMINISTRATIVAMENTE FUERTES | B161: GESTIÓN CON VALORES PARA RESULTADOS: Servicio al ciudadano | C161: Realizar transmisión en vivo (Facebook live) de la audiencia de RDC | D161: 156 | E161: 1 | F161: 0 | G161: 0 | H161: 0 | I161: 1 | J161: 1 | N161: 1 | P161: 0.001692047377 | Q161: 0.001692047377
A162: ADMINISTRATIVAMENTE FUERTES | B162: GESTIÓN CON VALORES PARA RESULTADOS: Servicio al ciudadano | C162: Publicar video de audiencia de rendición de cuentas en página web. | D162: 157 | E162: 1 | F162: 0 | G162: 0 | H162: 0 | I162: 1 | J162: 1 | N162: 1 | P162: 0.001692047377 | Q162: 0.001692047377
A163: ADMINISTRATIVAMENTE FUERTES | B163: GESTIÓN CON VALORES PARA RESULTADOS: Servicio al ciudadano | C163: Realizar actividades de rendición de cuentas parciales dirigida a grupos de interés | D163: 158 | E163: 0 | F163: 1 | G163: 1 | H163: 1 | I163: 3 | N163: 0 | P163: 0.005076142132 | Q163: 0
A164: ADMINISTRATIVAMENTE FUERTES | B164: GESTIÓN CON VALORES PARA RESULTADOS: Servicio al ciudadano | C164: Fortalecer la rendición de cuentas con distintos formatos accesibles con lenguaje comprensible al ciudadano. | D164: 159 | E164: 0 | F164: 1 | G164: 1 | H164: 1 | I164: 3 | N164: 0 | P164: 0.005076142132 | Q164: 0
A165: ADMINISTRATIVAMENTE FUERTES | B165: GESTIÓN CON VALORES PARA RESULTADOS: Servicio al ciudadano | C165: Notificar a la Superintendencia Nacional de Salud la realización de audiencia de RDC, según lineamientos. | D165: 160 | E165: 1 | F165: 0 | G165: 0 | H165: 0 | I165: 1 | J165: 1 | N165: 1 | P165: 0.001692047377 | Q165: 0.001692047377
A166: ADMINISTRATIVAMENTE FUERTES | B166: GESTIÓN CON VALORES PARA RESULTADOS: Servicio al ciudadano | C166: Adelantar actividades de difusión a través de medios internos y externos para promover que los funcionarios de la ESE y la ciudadanía en general conozcan y participen en el desarrollo de la estrategia de rendición de cuentas institucional. | D166: 161 | E166: 1 | F166: 0 | G166: 0 | H166: 0 | I166: 1 | J166: 1 | N166: 1 | P166: 0.001692047377 | Q166: 0.001692047377
A167: ADMINISTRATIVAMENTE FUERTES | B167: GESTIÓN CON VALORES PARA RESULTADOS: Servicio al ciudadano | C167: Informar a los usuarios los mecanismos y canales de participación en actividades de rendición de cuentas | D167: 162 | E167: 1 | F167: 0 | G167: 0 | H167: 0 | I167: 1 | J167: 1 | N167: 1 | P167: 0.001692047377 | Q167: 0.001692047377
A168: ADMINISTRATIVAMENTE FUERTES | B168: GESTIÓN CON VALORES PARA RESULTADOS: Servicio al ciudadano | C168: Convocar a entes de control para participar en actividades de Rendición de Cuentas del HRD | D168: 163 | E168: 1 | F168: 0 | G168: 0 | H168: 0 | I168: 1 | J168: 1 | N168: 1 | P168: 0.001692047377 | Q168: 0.001692047377
A169: ADMINISTRATIVAMENTE FUERTES | B169: GESTIÓN CON VALORES PARA RESULTADOS: Servicio al ciudadano | C169: Presentar ante las instancias competentes el informe de evaluación del desarrollo de la estrategia de rendición de cuentas 2020. | D169: 164 | E169: 0 | F169: 1 | G169: 0 | H169: 0 | I169: 1 | N169: 0 | P169: 0.001692047377 | Q169: 0
A170: ADMINISTRATIVAMENTE FUERTES | B170: GESTIÓN CON VALORES PARA RESULTADOS: Servicio al ciudadano | C170: Retroalimentar las observaciones de los participantes en la rendición de cuentas sobre la gestión institucional, ante comité operativo | D170: 165 | E170: 0 | F170: 1 | G170: 0 | H170: 0 | I170: 1 | N170: 0 | P170: 0.001692047377 | Q170: 0
A171: ADMINISTRATIVAMENTE FUERTES | B171: GESTIÓN CON VALORES PARA RESULTADOS: Servicio al ciudadano | C171: Publicación de mensajes de contenido audiovisual con lenguaje incluyente | D171: 166 | E171: 3 | F171: 3 | G171: 3 | H171: 3 | I171: 12 | J171: 3 | N171: 0.25 | P171: 0.02030456853 | Q171: 0.005076142132
A172: ADMINISTRATIVAMENTE FUERTES | B172: GESTIÓN CON VALORES PARA RESULTADOS: Servicio al ciudadano | C172: Socialización y adherencia de la guía de atención de enfoque diferencial a los colaboradores por sedes del HRD mediante herramientas digitales | D172: 167 | E172: 0 | F172: 1 | G172: 0 | H172: 0 | I172: 1 | N172: 0 | P172: 0.001692047377 | Q172: 0
A173: ADMINISTRATIVAMENTE FUERTES | B173: GESTIÓN CON VALORES PARA RESULTADOS: Servicio al ciudadano | C173: Racionalizar como mínimo un tramites en la vigencia 2021 de los que se encuentran inscritos en el SUIT. | D173: 168 | E173: 0 | F173: 0 | G173: 0 | H173: 1 | I173: 1 | N173: 0 | P173: 0.001692047377 | Q173: 0
A174: ADMINISTRATIVAMENTE FUERTES | B174: GESTIÓN CON VALORES PARA RESULTADOS: Servicio al ciudadano | C174: Identificación de las mejoras a realizar en los trámites | D174: 169 | E174: 0 | F174: 0 | G174: 0 | H174: 1 | I174: 1 | N174: 0 | P174: 0.001692047377 | Q174: 0
A175: ADMINISTRATIVAMENTE FUERTES | B175: GESTIÓN CON VALORES PARA RESULTADOS: Servicio al ciudadano | C175: Atención a PQRSF radicados por los usuarios, dentro de los términos establecidos en la normatividad vigente | D175: 170 | E175: 3 | F175: 3 | G175: 3 | H175: 3 | I175: 12 | J175: 3 | N175: 0.25 | P175: 0.02030456853 | Q175: 0.005076142132
A176: ADMINISTRATIVAMENTE FUERTES | B176: EVALUACIÓN DE RESULTADOS: Seguimiento y evaluación del desempeño institucional | C176: Realizar seguimiento al cumplimiento de planes operativos/planes de acción | D176: 171 | E176: 3 | F176: 3 | G176: 3 | H176: 3 | I176: 12 | J176: 3 | N176: 0.25 | P176: 0.02030456853 | Q176: 0.005076142132
A177: ADMINISTRATIVAMENTE FUERTES | B177: EVALUACIÓN DE RESULTADOS: Seguimiento y evaluación del desempeño institucional | C177: Seguimiento a indicadores financieros y de calidad | D177: 172 | E177: 3 | F177: 3 | G177: 3 | H177: 3 | I177: 12 | J177: 3 | N177: 0.25 | P177: 0.02030456853 | Q177: 0.005076142132
A178: ADMINISTRATIVAMENTE FUERTES | B178: EVALUACIÓN DE RESULTADOS: Seguimiento y evaluación del desempeño institucional | C178: Realización de autodiagnósticos MIPG | D178: 173 | E178: 1 | F178: 0 | G178: 0 | H178: 1 | I178: 2 | J178: 1 | N178: 0.5 | P178: 0.003384094755 | Q178: 0.001692047377
A179: ADMINISTRATIVAMENTE FUERTES | B179: EVALUACIÓN DE RESULTADOS: Seguimiento y evaluación del desempeño institucional | C179: Socialización de resultados de autodiagnósticos en comité de gestión y desempeño | D179: 174 | E179: 1 | F179: 0 | G179: 0 | H179: 1 | I179: 2 | J179: 1 | N179: 0.5 | P179: 0.003384094755 | Q179: 0.001692047377
A180: ADMINISTRATIVAMENTE FUERTES | B180: INFORMACIÓN Y COMUNICACIÓN: Gestión documental | C180: Mantener actualizado el inventario de activos de información del hospital. | D180: 175 | E180: 0 | F180: 1 | G180: 0 | H180: 1 | I180: 2 | N180: 0 | P180: 0.003384094755 | Q180: 0
A181: ADMINISTRATIVAMENTE FUERTES | B181: INFORMACIÓN Y COMUNICACIÓN: Gestión documental | C181: Depuración de Historias clínicas de acuerdo con la normatividad vigente (Acuerdo 004 de 2019 del AGN y Rln 839 de 2017 de Ministerio de Protección Social). | D181: 176 | E181: 0 | F181: 0 | G181: 0 | H181: 1 | I181: 1 | N181: 0 | P181: 0.001692047377 | Q181: 0
A182: ADMINISTRATIVAMENTE FUERTES | B182: INFORMACIÓN Y COMUNICACIÓN: Gestión documental | C182: Seguimiento al cumplimieto PINAR (Plan institucional de archivos) | D182: 177 | E182: 0 | F182: 1 | G182: 0 | H182: 1 | I182: 2 | N182: 0 | P182: 0.003384094755 | Q182: 0
A183: ADMINISTRATIVAMENTE FUERTES | B183: INFORMACIÓN Y COMUNICACIÓN: Gestión documental | C183: Destruir la documentación aprobada para eliminar y entregar para reciclaje. | D183: 178 | E183: 0 | F183: 0 | G183: 0 | H183: 1 | I183: 1 | N183: 0 | P183: 0.001692047377 | Q183: 0
A184: ADMINISTRATIVAMENTE FUERTES | B184: INFORMACIÓN Y COMUNICACIÓN: Gestión documental | C184: Auditoria a las diferentes dependencias del HRD, para establecer la adherencia a la política de gestión documental e información | D184: 179 | E184: 0 | F184: 0 | G184: 0 | H184: 1 | I184: 1 | N184: 0 | P184: 0.001692047377 | Q184: 0
A185: ADMINISTRATIVAMENTE FUERTES | B185: INFORMACIÓN Y COMUNICACIÓN: Gestión documental | C185: Socializar y aplicar las tablas de retención documental aprobadas en todos los procesos del HRD. | D185: 180 | E185: 1 | F185: 1 | G185: 1 | H185: 1 | I185: 4 | J185: 1 | N185: 0.25 | P185: 0.006768189509 | Q185: 0.001692047377
A186: ADMINISTRATIVAMENTE FUERTES | B186: INFORMACIÓN Y COMUNICACIÓN: Gestión documental | C186: Elaborar de cronograma de transferencias documentales | D186: 181 | E186: 1 | F186: 0 | G186: 0 | H186: 0 | I186: 1 | J186: 1 | N186: 1 | P186: 0.001692047377 | Q186: 0.001692047377
A187: ADMINISTRATIVAMENTE FUERTES | B187: INFORMACIÓN Y COMUNICACIÓN: Gestión documental | C187: Entrega de informe de cumplimiento de transferencias documentales | D187: 182 | E187: 0 | F187: 0 | G187: 0 | H187: 1 | I187: 1 | N187: 0 | P187: 0.001692047377 | Q187: 0
A188: ADMINISTRATIVAMENTE FUERTES | B188: INFORMACIÓN Y COMUNICACIÓN: Gestión documental | C188: Organización de fondo acumulado | D188: 183 | E188: 0 | F188: 1 | G188: 0 | H188: 1 | I188: 2 | N188: 0 | P188: 0.003384094755 | Q188: 0
A189: ADMINISTRATIVAMENTE FUERTES | B189: INFORMACIÓN Y COMUNICACIÓN: Gestión documental | C189: Dar cumplimiento al cronograma de transferencias | D189: 184 | E189: 0 | F189: 1 | G189: 0 | H189: 0 | I189: 1 | N189: 0 | P189: 0.001692047377 | Q189: 0
A190: ADMINISTRATIVAMENTE FUERTES | B190: INFORMACIÓN Y COMUNICACIÓN: Gestión documental | C190: Actividades de prevención y conservación de documentos de acuerdo a la SIC | D190: 185 | E190: 0 | F190: 1 | G190: 0 | H190: 0 | I190: 1 | N190: 0 | P190: 0.001692047377 | Q190: 0
A191: ADMINISTRATIVAMENTE FUERTES | B191: INFORMACÓN Y COMUNICACIÓN: Transparencia, acceso a la información pública, y lucha contra la corrupción | C191: Publicar información en la página web de la entidad, teniendo en cuenta requerimientos de entes de control | D191: 186 | E191: 0 | F191: 0 | G191: 0 | H191: 1 | I191: 1 | N191: 0 | P191: 0.001692047377 | Q191: 0
A192: ADMINISTRATIVAMENTE FUERTES | B192: INFORMACÓN Y COMUNICACIÓN: Transparencia, acceso a la información pública, y lucha contra la corrupción | C192: Mantener actualizada la pagina WEB según la Ley 1712 de 2014 | D192: 187 | E192: 3 | F192: 3 | G192: 3 | H192: 3 | I192: 12 | J192: 3 | N192: 0.25 | P192: 0.02030456853 | Q192: 0.005076142132
A193: ADMINISTRATIVAMENTE FUERTES | B193: INFORMACÓN Y COMUNICACIÓN: Transparencia, acceso a la información pública, y lucha contra la corrupción | C193: Divulgación de los datos abiertos | D193: 188 | E193: 3 | F193: 3 | G193: 3 | H193: 3 | I193: 12 | J193: 3 | N193: 0.25 | P193: 0.02030456853 | Q193: 0.005076142132
A194: ADMINISTRATIVAMENTE FUERTES | B194: GESTIÓN DEL CONOCIMIENTO Y LA INNOVACIÓN | C194: Cargar cursos en plataforma AVA, teniendo en cuenta necesidades de comunicación | D194: 189 | E194: 0 | F194: 0 | G194: 0 | H194: 1 | I194: 1 | N194: 0 | P194: 0.001692047377 | Q194: 0
A195: ADMINISTRATIVAMENTE FUERTES | B195: GESTIÓN DEL CONOCIMIENTO Y LA INNOVACIÓN | C195: Definir plan de capacitaciones para la vigencia | D195: 190 | E195: 1 | F195: 0 | G195: 0 | H195: 0 | I195: 1 | J195: 1 | N195: 1 | P195: 0.001692047377 | Q195: 0.001692047377
A196: ADMINISTRATIVAMENTE FUERTES | B196: GESTIÓN DEL CONOCIMIENTO Y LA INNOVACIÓN | C196: Realizar seguimiento al cumplimiento del plan de capacitaciones | D196: 191 | E196: 1 | F196: 1 | G196: 1 | H196: 1 | I196: 4 | J196: 0 | N196: 0 | P196: 0.006768189509 | Q196: 0
A197: ADMINISTRATIVAMENTE FUERTES | B197: GESTIÓN DEL CONOCIMIENTO Y LA INNOVACIÓN | C197: Dar cumplimiento al plan de capacitaciones | D197: 192 | E197: 0 | F197: 1 | G197: 0 | H197: 1 | I197: 2 | N197: 0 | P197: 0.003384094755 | Q197: 0
A198: ADMINISTRATIVAMENTE FUERTES | B198: GESTIÓN DEL CONOCIMIENTO Y LA INNOVACIÓN | C198: Definir proceso de inducción del personal en formación, e incluirlo en el programa de inducción y reinducción. | D198: 193 | E198: 0 | F198: 0 | G198: 0 | H198: 1 | I198: 1 | N198: 0 | P198: =IFERROR(I198/SUM($I$6:$I$208),"") -> 0.001692047377 | Q198: =IFERROR(SUM(J198:M198)/SUM($I$6:$I$208),0%) -> 0
A199: ADMINISTRATIVAMENTE FUERTES | B199: GESTIÓN DEL CONOCIMIENTO Y LA INNOVACIÓN | C199: Ejecutar actividades de inducción del personal en formación, remitido por las instituciones con las cuales se cuenta con convenio de docencia y servicio. | D199: =ROW()-5 -> 194 | E199: 0 | F199: 1 | G199: 0 | H199: 1 | I199: =SUM(E199:H199) -> 2 | N199: =IFERROR(SUM(J199:M199)/I199,0%) -> 0 | P199: 0.003384094755 | Q199: 0
A200: ADMINISTRATIVAMENTE FUERTES | B200: GESTIÓN DEL CONOCIMIENTO Y LA INNOVACIÓN | C200: Socializar los resultados de investigaciones en las que participe el hospital | D200: 195 | E200: 0 | F200: 0 | G200: 0 | H200: 1 | I200: 1 | N200: 0 | P200: 0.001692047377 | Q200: 0
A201: ADMINISTRATIVAMENTE FUERTES | B201: CONTROL INTERNO: Ambiente de control | C201: Formulación y aprobación del plan de auditorías de calidad | D201: 196 | E201: 1 | F201: 0 | G201: 0 | H201: 0 | I201: 1 | J201: 1 | N201: 1 | P201: 0.001692047377 | Q201: 0.001692047377
A202: ADMINISTRATIVAMENTE FUERTES | B202: CONTROL INTERNO: Ambiente de control | C202: Formulación y aprobación del plan de auditorías de control interno | D202: 197 | E202: 1 | F202: 0 | G202: 0 | H202: 0 | I202: 1 | J202: 1 | N202: 1 | P202: 0.001692047377 | Q202: 0.001692047377
... 211 more rows

Sheet PLAN DE ACCION 2021 (hidden)
D1: PLAN DE ACCION 2021 E.S.E HOSPITAL REGIONAL DE DUITAMA
A2: EJE ESTRATÉGICO | B2: PROGRAMA/POLÍTICA | D2: ACTIVIDAD | E2: Línea Base | F2: META | G2: INDICADOR | H2: SOPORTE | I2: RESPONSABLE | J2: FECHA
A3: TRABAJANDO EN CONDICIONES DE SEGURIDAD, CALIDAD Y CALIDEZ. | B3: CAMINO HACIA LA ACREDITACIÓN | D3: Dar cumplimiento al mantenimiento de las condiciones de Habilitación para la ESE Hospital Regional de Duitama (excepto Infraestructura) | E3: 60% vigencia 2020 | F3: 0.7 | G3: % de Mantenimiento de las condiciones de habilitación en la ESE Hospital Regional de Duitama | H3: Reporte de Cumplimiento | I3: Líder de calidad | J3: 31 de Diciembre de 2021
D4: Cumplimiento del Programa de Auditoria para el Mejoramiento de la Calidad (PAMEC) | E4: 90% Vigencia 2020 | F4: >90% | G4: % de Cumplimiento del PAMEC | H4: Informe auditorias Auditorias realizadas | I4: Líder de calidad | J4: 31 de Diciembre de 2021
D5: Cumplimiento oportuno del reporte relacionado con el Sistema de Información para la Calidad (SIC) | E5: 100% vigencia 2020 | F5: 1 | G5: % de cumplimiento del reporte oportuno del Sistema de Información para la Calidad | H5: Reporte SIC- Informe mensual EPS- Trimestral Súper Salud- Semestral 2193- Reuniones mensuales validación de indicadores | I5: Líder de calidad | J5: 31 de Diciembre de 2021
D6: Autoevaluación de los estándares de acreditación aplicable a instituciones no acreditadas. | E6: 1.70 vigencia 2020 | F6: 1.73 | G6: Promedio de autoevaluación de los Estándares de Acreditación | H6: Informe Autoevaluación. | I6: Líder de calidad | J6: 31 de Diciembre de 2021
B7: IMPLEMENTACIÓN POLÍTICA DE HUMANIZACIÓN | D7: Conformar equipo de humanización para atención de necesidades de los usuarios, instalando 1 punto en urgencias, 1 punto en consulta externa y 2 puntos en hospitalización | E7: 0 | F7: 4 | G7: Puntos de humanización implemtados y operando e diferentes servicios de la entidad | H7: Contratos de personal y egresos de almacén | I7: Subgerencia administrativa y Subgerencia científica | J7: 31 de diciembre de 2021
D8: Documentar y normalizar Política de humanización | E8: ND | F8: 1 | G8: Programa adoptado mediante Resolución | H8: Programa normalizado | I8: Líder humanización | J8: Marzo de 2021
D9: Implementar Política de humanización | E9: ND | F9: ≥90% | G9: Total de Actividades ejecutadas/Total de actividades programas *100 | H9: Resolución de adopción de la política y/o programa | I9: Líder humanización | J9: 31 de diciembre de 2021
B10: SALUD DE LA FAMILIA GESTANTE | D10: Autoevaluación trimestral de la estrategia | E10: ND | F10: 3 | G10: Evaluaciones programadas / Evaluaciones realizadas | H10: Autoevaluación diligenciada en lineamientos de la estrategia | I10: Líder Hospitalización | J10: 30 Abril de 2021 31 de julio de 2021 31 de Octubre 2021
D11: Implementación de los formatos de historia clínica (Gestión del Riesgo Obstetra, Riesgo tromboembolico, Escala de alerta temprana, Escala de Edimburgo y Clasificación del Riesgo Prenatal, Control de poperio de alto riesgo) | E11: ND | F11: 1 | G11: Formatos implementado/ Registro historia clínica en dinámica gerencial | H11: Registro del folio de dinámica gerencial | I11: Líder Hospitalización | J11: Bimensual
D12: Fortalecer el programa de inducción de la estrategia IAMI a todos los colaboradores del hospital, mediante de curso de formación en la plataforma AVA | E12: 530 colaboradores vigencia 2020 | F12: >70 | G12: No. Colaboradores certificados IAMI/ Total de colaboradores del hospital | H12: Certificación | I12: Líder de Talento Humano, Líder de Hospitalización | J12: Noviembre de 2021
B13: ATENCIÓN SEGURA | D13: Actualizar política y programa de seguridad del paciente, incluyendo plan de incentivos para la seguridad del paciente y medición de la percepción de la seguridad del paciente. | E13: ND | F13: 1 | G13: Programa de Seguridad del paciente actualizado. | H13: Programa de Seguridad del paciente actualizado. | I13: Líder Seguridad del paciente | J13: Junio de 2021
D14: Vigilancia de la adherencia a los programas prevención de infecciones asociadas a la atenció en salud (Aislamiento, procesos de limpieza y desinfección, uso racional de antibióticos, programa higiene de manos, adherencia a protocolos venopunción, búsqueda activa de infecciones asociadas a la atención en Salud) | E14: Seguimiento de infecciones asociadas a la atención en comité de infecciones | F14: 4 por cada unoo de los programas (trimestral) | G14: Informes programados /Informes reportados | H14: Informe de adherencia de los programas elaborado y socializado ante comité de infecciones | I14: Líder Seguridad del paciente | J14: 30 de Julio de 2021 31 de Diciembre de 2021
D15: Elaborar linea de base respecto del avance en la implemntación de los paquetes instruccionales | E15: Documentación en el Gestor documental | F15: 1 | G15: Linea de base elaborada | H15: Linea de base elaborada y socializada en comité de segurdad del paciente | I15: Líder Seguridad del paciente | J15: 30 de Julio de 2021 31 de Diciembre de 2021
D16: Elaboración de plan de trabajo para la implementación de paquetes instruccionales de seguridad del pacientes | E16: ND | F16: 1 | G16: Pla de trabajo elaborado | H16: Plan de trabajo elaborado y socializado | I16: Líder Seguridad del paciente | J16: 15 de diciembre de 2021
A17: SUPERANDO LA PANDEMIA | B17: SUPERANDO JUNTOS LA COVID 19 | D17: Elaboración de productos audiovisuales, impresos y espacios virtuales para la socialización de los protocolos y recomendaciones para los colaboradores de la entidad. | E17: 100% vigencia 2020 | F17: Cumplir el 90% de las solicitudes realizadas. | G17: Cantidad de productos solicitados / Cantidad de productos elaborados. | H17: Producto elaborado y/o publicado | I17: Líder Comunicaciones | J17: 31 de Diciembre de 2021
D18: Elaboración de material educativo audiovisual o impreso para la socialización de recomendaciones a la comunidad sobre prevención y manejo de la pandemia y sus consecuencias. | E18: ND | F18: Publicación de al menos 10 productos. | G18: Publicación de 10 productos. | H18: Publicación de producto | I18: Líder Comunicaciones | J18: 31 de Diciembre de 2021
D19: Elaboración de material impreso para la señalización de lugares de alta afluencia de público con el objetivo de cumplir con las recomendaciones de distanciamiento y protocolos de seguridad. | E19: ND | F19: Cumplimiento del 90% de requerimientos. | G19: Requerimientos solicitados / Requerimientos cumplidos . | H19: Producto elaborado y/o publicado | I19: Líder Comunicaciones | J19: 31 de Diciembre de 2021
D20: Elaboración de material audiovisual o impreso para la socialización de los servicios ofertados y las distintas maneras de acceso a los mismos. | E20: ND | F20: 3 productos audiovisuales publicados 5 productos impresos elaborados y publicados | G20: Publicación de 3 productos audiovisuales y 5 productos impresos | H20: Publicación de las cantidades establecidas de productos | I20: Líder Comunicaciones | J20: 31 de Diciembre de 2021
D21: Realizar auditorias mensuales de adherencia al protocolo de seguridad laboral | E21: ND | F21: 12 auditorías | G21: No de auditorias ejecutadas/No de auditorias programadas *100 | H21: Formato de auditoria diligenciado | I21: Líder Sigasst | J21: 31 de Diciembre de 2021
D22: Participar en la investigación, seguimiento, cerco epidemiológico de los casos COVID 19 que se presenten en los colaboradores de la ESE Hospital Regional Duitama | E22: ND | F22: Hacer seguimiento a cada uno de los casos sospechosos o confirmados por COVID que reporten a SST | G22: seguimiento al 100% de los casos reportados | H22: Matriz e informe presentado a coordinador de prestación de servicios | I22: líder sigaast, cord prestación de servicios, enf vsp | J22: 31 de Diciembre de 2021
D23: Seguimiento a la implementación del plan de vacunación para COVID 19 según lineamientos normativos | E23: ND | F23: seguimiento mensual | G23: No de seguimientos ejecutados/ No de colaboradores de la entidad | H23: formato de consentimiento y desistimiento de vacuna COVID 19 | I23: Líder sigasst, profesional de vacunación | J23: 31 de Diciembre de 2021
B24: AMPLIACIÓN PORTAFOLIO DE SERVICIOS | D24: Inscripción ante el REPS de nuevos servicios | E24: A la fecha se encuentra inscritos 90 servicios ante el REPS en sus tres sedes | F24: 2 | G24: Reporte Inscripción REPS | H24: Reporte Inscripción REPS | I24: Líder Calidad | J24: 31 de Diciembre de 2021
D25: Ofertar a las EAPB con contrato vigente sobre los nuevos servicios ofertados por la Institución según reporte de Calidad ante REPS | E25: 6 ofertas de la vigencia 2021 | F25: 1 | G25: (Oferta de nuevos servicios a las EAPB/ Informe Reporte Inscripción REPS de calidad)*100 | H25: Envío de correo a las EAPB con Contrato | I25: Coordinador de Mercadeo, Facturación y Devoluciones | J25: Cuatrimestral
D26: Socializar los acuerdo de voluntades con las diferentes EAPB | E26: ND | F26: 1 | G26: (Acuerdo de Voluntades Publicado en el Gestor /Acuerdo de Voluntades legalizado por parte de la Gerencia HRD)*100 | H26: Soporte de envío de oferta de nuevos servicios. | I26: Coordinador de Mercadeo, Facturación y Devoluciones | J26: Cuatrimestral
D27: Actualización del proceso y procedimientos de la Gestión Comercial | E27: 7 procesos en el gestor documental | F27: 3 | G27: 100% de procedimientos de mercadeo actualizados | H27: Procedimientos aprobados mediante comité | I27: Coordinador de Mercadeo, Facturación y Devoluciones | J27: 30 de junio de 2021
A28: NOS EVALUAMOS Y MEJORAMOS | B28: REINGENIERÍA DE PROCESOS | D28: Restructuración del mapa de procesos | E28: Maoa de procesos vigente | F28: 1 | G28: Mapa de proceso aprobado por gerencia y normalizado | H28: Mapa normalizado y adoptado | I28: Líder de mejora continua, Líder de calidad, Subgerencia administrativa, Subgerencia científica, Planeación y Control Interno coordinadora. | J28: Diciembre 31 de 2021
D29: Levantamiento de inventario documental (Procesos, Subprocesos, Procedimientos, Guías, Protocolos y Formatos) | E29: Listado Maestro | F29: 1 | G29: Documento detallado por cada uno de los Procesos y Subproceso | H29: Inventario digital digitalizado. | I29: líder de mejora continua. | J29: 28 de febrero de 2021
D30: Socialización de inventario documental con cada uno de los lideres | E30: Inventario doculmental | F30: Cumplimiento del 100% del cronograma de socialización | G30: No de socializaciones ejecutadas con lideres/Total de socializaciones programadas | H30: Actas de reunión | I30: líder de mejora continua. | J30: 30 de junio de 2021
D31: Revisión y actualización documental del año 2018 y anteriores | E31: Inventario documental años (2018 y anteriores) | F31: 0.1 | G31: Documentos actualizados/ Inventario documental de 2018 y anteriores. | H31: Documentos normalizados versión 2021 | I31: líder de mejora continua. | J31: Diciembre 31 de 2021
B32: MEJORA CONTINUA | D32: Seguimiento trimestral al cumplimiento de las actividades a desarrollar de la Matriz de Riesgo | E32: Matriz de Riesgos | F32: 4 | G32: Números de seguimientos ejecutados/numero de seguimientos programados | H32: Matriz actualizada y remitida a líder de desarrollo organizacional | I32: Líder de mejora continua Control Interno | J32: 31 de diciembre de 2021
D33: Seguimiento Bimensual de las acciones planteadas en el PUMI, verificando acciones cerradas y pendientes | E33: ND | F33: 6 | G33: Informe generado | H33: Informe generado | I33: Líder de mejora continua | J33: 30 de Julio de 2021 31 de Diciembre de 2021
D34: Elaborar actas de compromiso con los líderes que tengas acciones de mejora pendientes por realizar | E34: Acciones de mejora 2019=56 2020 =48 | F34: 1 | G34: Total de acta de actas de compromiso suscritas/Total de líderes con acciones pendientes por cerrar. | H34: Actas de compromiso suscritas | I34: Líder de mejora continua - Líderes de proceso | J34: 30 de Septiembre de 2021 31 de Diciembre de 2021
A35: COMPETITIVOS Y SOSTENIBLES | B35: IMPLEMENTACIÓN SISTEMA DE COSTOS | D35: Continuar con la fase II del sistema de Costos, la cual se centra en la perfección de las parametrizaciones de los diferentes módulos que conforman el software Dinámica Gerencial. | E35: Cumplimeinto fase I mediante esolución 191, por medio de la cual se estructura el sistea de costos de ESE HRD. | F35: >60% | G35: (No de parametros configurados en el sistema/Total de parámetros del sistema de costos)x100 | H35: Actas de reunión con los lideres responsables de los módulos parametrizados. | I35: Asesor financiero, profesional de costos | J35: 15% de avance en cada trimestre
B36: FACTURACIÓN LIMPIA | D36: Evaluar competecias y conocimientos del grupo de facturación e incrementar el promedio de calificación en 10% respecto de la línea de base | E36: ND | F36: 0.05 | G36: 1-(Promedio de evaluación de facturadores en el periodo anterior/Promedio de evaluación de facturadores en el periodo cristal)x100% | H36: Informes de autodiagnóstico | I36: Líder de Facturación | J36: Medición trimestral
D37: Generar un incremento de un 3% en la facturación neta de la vigencia con respecto a la vigencia anterior | E37: 45202116955 | F37: 0.03 | G37: 1-(Facturación Neta Generada en la vigencia anterior/Facturación Neta Generada en la vigencia actual)*100 Fuente: Ejecución Presupuestal de Ingresos | H37: Formato de seguimiento con base en la información de Ejecución de Ingresos (Reconocimiento por Venta de Servicios) | I37: Coordinador de Mercadeo, Facturación y Devoluciones | J37: 30 de Julio de 2020
D38: Reducción de la recepción de devoluciones con respecto a la vigencia anterior | E38: 9500000000 | F38: 0.15 | G38: 1-(Valor de devoluciones recibidas durante la anterior / Valor de devoluciones recibidas en la vigencia actual)*100 | H38: Formato de seguimiento con base en la información de Formato de Seguimiento a Devoluciones (314-1P9-F1) | I38: Coordinador de Mercadeo, Facturación y Devoluciones | J38: Cuatrimestral
D39: Cumplir el cronograma de radicación mensual de cuentas de cobro | E39: ND | F39: 0.9 | G39: (Total de cuentas de cobro radicadas del periodo/ Total de cuentas de cobro generadas en el periodo)*100 | H39: Informe de radicación del mes | I39: Líder de Facturación | J39: 31 de enero, 28 de febrero, 31 marzo, 30 abril, 31 mayo, 30 junio, 31 julio, 31 agosto, 30 septiembre, 31 octubre, 30 noviembre y 31 de diciembre.
D40: Gestionar dentro del mes siguiente las facturas pendientes por radicar ante las diferentes EAPB | E40: ND | F40: ≥90% | G40: (Total de facturas de periodos anteriores cerradas y radicadas/ Total de facturas pendientes por radicar de periodos anteriores)*100 | H40: Informe de radicación del mes | I40: Líder de Facturación | J40: 31 de enero, 28 de febrero, 31 marzo, 30 abril, 31 mayo, 30 junio, 31 julio, 31 agosto, 30 septiembre, 31 octubre, 30 noviembre y 31 de diciembre.
B41: GESTIÓN DE COBRO | D41: Realizar cruces de cartera trimestrales con las EAPB que representen el 60% de la facturación de la entidad | E41: ND | F41: 4 | G41: Cruces de cartera realizados con EAPB que representen el 60% de la facturación de la entidad | H41: Acta de cruce de cartera, suscrita por las partes | I41: Líder de cartera | J41: Trimestral
D42: identificar las EAPB con acreencias de difícil recaudo a fin de adelantar acciones jurídicas pertinentes | E42: clasificación e identificación de EAPB de díficil recaudo. Vigencia 2020 | F42: 1 | G42: Relación de EAPB con acreencias de difícil recaudo | H42: Relación de EAPB con acreencias de difícil recaudo | I42: Líder de cartera | J42: 30 de Junio de 2021
D43: Dar inicio a las acciones judiciales a las que haya lugar, frente a las EAPB con acreencias de difícil recaudo | E43: ND | F43: 1 | G43: Informe presentado por área jurídica en el que indiquen las acciones judiciales instauradas | H43: Informe presentado por área jurídica en el que indiquen las acciones judiciales instauradas | I43: Líder de cartera | J43: 30 de diciembre de 2021
D44: Realizar el cargue de información relativa a la circular 014, y 030 | E44: 100% vigencia 2020 | F44: 12 de la circular 014 y 4 de la 030 | G44: No informes cargados a la plataformas/ Total de informes programados*100 | H44: Soportes de cargue de la información | I44: Líder de cartera | J44: Mensual y trimestral a partir de julio de 2021
D45: Seguimiento compromisos circular 130 y 030 a Secretaría de Salud Departamental. | E45: ND | F45: 12 seguimientos circular 030 y 12 circular 130 | G45: No seguimientos ejecutados/ No de seguimiento programados*100 | H45: Correos electrónicos enviados | I45: Líder de cartera | J45: Mensual
B46: PROPUESTA DE SERVICIOS | D46: Elaborar costeo de principales procedimientos quirúrgicos de las dos especialidades con mayor demanda y rentabilidad en el hospital. | E46: ND | F46: 2 | G46: Número de Costeos realizado | H46: Costeo realizado en soporte documental en la Ficha de costos. | I46: Asesor financiero - Asesor gestión comercial - Asesor Costos Hospitalarios | J46: Trimestral
D47: Con base en costeo realizado, formular paquetes para ofertar a las diferentes EAPB | E47: ND | F47: 1 | G47: Paquetes ofertados / Procedimientos costeados | H47: Paquetes formulados | I47: Asesor financiero - Asesor gestión comercial y/o Auditoria Medica | J47: Trimestral
B48: GESTIÓN DE EQUIPOS | D48: Implementar el manual de tecnovigilancia | E48: ND | F48: 0.7 | G48: Evaluación realizada al cumplimiento del manual. | H48: Soporte Evaluación realizada. | I48: Líder Mantenimiento Biomédico | J48: 09 de octubre de 2021
D49: Elaborar e implementar Plan de mantenimiento anual de equipo biomédico | E49: ND | F49: 0.9 | G49: Número de equipos a los que se le realizo mantenimiento preventivo / numero de equipos totales programados | H49: Planillas de mantenimiento Documento con resultados de calculo del indicador a partir de la ejecución del mes de septiembre | I49: Líder Mantenimiento Biomédico | J49: 01 de Octubre de 2021 01 de Noviembre 2021 01 de Diciembre 2021
B50: GESTIÓN DE INFRAESTRUCTURA | D50: Solicitud de licencia de construcción para proyecto de infraestructura: Salas de Cirugía y Parto. | E50: ND | F50: 1 | G50: Solicitud Presentada | H50: radicado de la solicitud | I50: Arquitecto Mantenimiento Infraestructura | J50: Enero de 2021
D51: Presentar plan arquitectónico para áreas de expansión referente al área covid del HRD | E51: ND | F51: 1 | G51: Propuesta radicada a subgerencia Administrativa | H51: Propuesta radicada a subgerencia Administrativa | I51: Arquitecto Mantenimiento Infraestructura | J51: 15 de abril de 2021
D52: Elaborar informe de cumplimiento al plan de mantenimiento | E52: ND | F52: 4 | G52: Informes de cumplimiento / informes programados*100 | H52: Informe de cumplimiento | I52: Arquitecto Mantenimiento Infraestructura | J52: Trimestral
B53: CENTRAL DE MEZCLAS | D53: Realizar la validación de la resolución 444 de 2008 | E53: 0.866 | F53: 10 validaciones | G53: Informe ejecutados/informe programados | H53: Informe de validación socializado a subgerencia científica | I53: Líder central de Mezclas | J53: Diciembre de 2021
D54: Cumplimiento al cronograma de capacitación | E54: ND | F54: 1 | G54: Capacitación Realizada al personal del servicio farmacéutico HRD / total de colaboradores del servicio farmaceutico | H54: Lista de Asistencia a Capacitación. | I54: Lider Farmacia | J54: Noviembre de 2021
A55: SOCIALMENTE RESPONSABLES | B55: SISTEMA DE SALUD Y SEGURIDAD EN EL TRABAJO | D55: Ejecutar el sistema de gestión de seguridad y salud en el trabajo acorde al plan de anual de trabajo | E55: 0.7 | F55: aumentar la calificación de los estándares mínimos del SGSST al 70% | G55: No de actividad ejecutadas/No de actividades programadas*100 | H55: soporte de cada una de actividades programadas enregada a planeacion | I55: líder sigasst | J55: 31 de diciembre 2021
D56: Generar un soporte de la planeación del presupuesto asignado para el desarrollo de las acciones del SGSST | E56: ND | F56: 1 documento de planeación de presupuesto que incluya el presupuesto asignado a las acciones del SGSST | G56: 1 documento actualizado | H56: documento de presupuesto que incluya el presupuesto del SGSST | I56: Subgerencia Administrativa | J56: 2021-10-31
D57: Entregar en documento escrito las responsabilidades en el SGSST, a todos los colaboradores de la ESE de acuerdo a su nivel , de forma virtual | E57: ND | F57: 100% de los colaboradores con el documento en donde se establezcan las responsabilidades en el SGSST | G57: No de trabajadores con las responsabilidades/No total de trabajadores *100 | H57: formato con evidencia de recibido | I57: lider SIGASST | J57: 2021-06-30
D58: Programar y ejecutar las actividades de capacitación para el COPASST | E58: ND | F58: 100% de las capacitaciones programadas, ejecutadas | G58: No de capacitaciones para el COPASST ejecutadas /No de capacitaciones para el COPASST programadas *100 | H58: actas de ejecución de las actividad del a ARL | I58: lider SIGASST | J58: 2021-11-30
D59: Elaborar un programa de capacitación, sobre normatividad legal y control de los riesgos mas frecuentes en la ESE | E59: ND | F59: 100% de cumplimiento del programa | G59: No de capacitaciones ejecutadas/No de capacitaciones programadas *100 | H59: planillas de asistencia (virtual) actas de ejecución de la ARL ó del facilitador del tema | I59: lider SIGASST | J59: 2021-12-31
D60: Elaborar un programa de reinducción, sobre normatividad legal en el SGSST y control de los riesgos mas frecuentes en la ESE | E60: ND | F60: 100% de cumplimiento del programa | G60: No de capacitaciones ejecutadas/No de capacitaciones programadas *100 | H60: planillas de asistencia (virtual) actas de ejecución de la ARL ó del facilitador del tema | I60: lider SIGASST | J60: 2021-12-31
D61: Actualizar los objetivos y metas del SGSST | E61: ND | F61: documento actualizado | G61: 1 documento actualizado | H61: documento normalizado | I61: lider SIGASST | J61: 2021-03-01
D62: Realizar rendición de cuentas sobre los avances del SGSST | E62: ND | F62: informe virtual sobre avances del SGSST | H62: evidencia de asistencia, | I62: lider SIGASST | J62: 2021-03-01
D63: Actualizar matriz legal | E63: ND | F63: ultima normatividad en SGSST, incluida en la matriz legal | G63: 1 documento actualizado | H63: matriz legal actualizada | I63: lider SIGASST | J63: 2021-07-30
D64: Actualizar procedimiento de comunicaciones de tal manera que se incluyan formas de interacción con los colaboradores | E64: ND | F64: documento actualizado | G64: 1 documento actualizado | H64: documento actualizado y normalziado | I64: lider SIGASST | J64: 2021-09-30
D65: Implementar el proceso para la adquisicion de bienes y servicios en el SGSST | E65: ND | F65: 30% de contratos de prestacion de servicios que cumplan los requisitos del SGSST. | G65: No de contratos con requisitos del sgsst/ No total de contratos | H65: contratos con requisitos del SGSST | I65: lider contratación | J65: 2021-12-30
D66: Actualizar los requisitos que desde el SGSST deben presentar los colaboradores para el ingreso a la institución | E66: ND | F66: documento actualizado | G66: documento actualziado y normalziado | H66: documento actualizado normalziado | I66: lider SIGASST | J66: 2021-05-30
D67: Actualización del perfil sociodemografico de los colaboradores de la empresa | E67: ND | F67: documento actualizado | G67: documento actualziado y normalziado | H67: documento actualizado normalziado | I67: lider SIGASST | J67: 2021-02-28
D68: Actualizar matriz de peligros teniendo en cuenta nuevas areas de expansion | E68: ND | F68: documento actualizado | G68: documento actualziado y normalziado | H68: documento actualizado normalziado | I68: lider SIGASST | J68: 2021-04-30
D69: Actualizar SVE riesgo biologico incluida la vigilancia de COVID 19 | E69: ND | F69: documento actualizado | G69: documento actualziado y normalziado | H69: documento actualizado normalziado | I69: lider SIGASST | J69: 2021-04-30
D70: Diseñar un sistema de vigilancia epidemiologica para el riesgo psicosocial en los empleados públicos e implementar acciones para disminuir los factores de riesgo | E70: ND | F70: documento actualizado | G70: documento normalziado | H70: documento normalziado | I70: lider SIGASST | J70: 2021-07-30
D71: Realizar y ejecutar un plan de actividades de promoción y prevención según los riesgos encontrados en la empresa y las caracteristicas de la población | E71: ND | F71: documento actualizado con base en perfil sociodemografico y matriz de peligros | G71: 1 plan de activiades de promocion y prevención | H71: evidencias de ejecución del plan de promocion y prevención | I71: lider SIGASST | J71: 2021-06-30
D72: Realizar estudio previo para la contratación de las evaluaciones medicas periodicas ocupacionales a los servidores públicos de la empresa | E72: ND | F72: estudio previo presentado a contratación | G72: 1 estudio previo presentado a contratación | H72: documento de estudio previo | I72: lider SIGASST | J72: 2021-07-15
D73: Realizar seguimiento a las restricciones y recomendaciones generadas por médicos ARL y EPS | E73: ND | F73: matriz de seguimiento a restricciones actualziado | G73: 1 Matriz de seguimiento actualizada con soportes | H73: 1 Matriz de seguimiento actualizada con soportes | I73: lider SIGASST | J73: 30/8/21 y 30/12/21
D74: Documentar e implementar el procedimiento mediante el cual se realizan las investigaciones de accidentes y enfermedades laborales | E74: ND | F74: documento normalizado | G74: 1 documento normalizado | H74: 1 documento normalizado | I74: lider SIGASST | J74: 2021-04-30
D75: Documentar e implementar el procedimiento para la recoleccion de información que permita construir lso indicadores de obligatorio cumplimiento previstos en la Res 0312 de 2019 | E75: ND | F75: documento normalizado | G75: 1 documento normalizado | H75: 1 documento normalizado | I75: lider SIGASST | J75: 2021-03-30
D76: Mantener actualizados los indicadores de obligatorio cumplimiento previstos en la Resolucion 0312 de 2019 e informar el seguimiento de estos a trabajadores y al nivel directivo | E76: ND | F76: matriz de indicadores actualizada mes vencido | G76: 1 matriz de indicadores actualizada mes vencido | H76: 1 matriz de indicadores actualizada mes vencido | I76: lider SIGASST | J76: 2021-12-30
D77: Generar un procedimiento para establecer la metodologia para la identificación de peligros, evaluación y valoración de los riesgos, garantizando la participación de todos los nIveles de la organización | E77: ND | F77: documento normalizado | G77: 1 documento normalizado | H77: 1 documento normalizado | I77: lider SIGASST | J77: 2021-03-30
D78: Identificar las sustancias carcinogenas o con toxicidad aguda y actualziar la ficha de seguridad bajo el SGA | E78: ND | F78: Identificar el 100% de las sustancias quimicas que se usan en el hospital si son cancrigenas ó no | G78: No de fichas de seguridad de sustancias quicas cancerigencas/ total de sustancias quimicas *100 | H78: 1 listado de sustancias quimicas cancerigenas con su ficha de seguirdad | I78: comité GAGAS | J78: 2021-03-30
D79: Realizar medicion ambiental de radiación ionizante y generar acciones de mejora a partir de los resultados | E79: ND | F79: Realizar medicion ambiental de radiación ionizante y generar acciones de mejora a partir de los resultados | G79: 1 medición ambiental de radiación ionizante realizada | H79: Informe de medición de radiación ionizante actualziado | I79: Lider de radiologia y consulta externa | J79: 2021-05-30
D80: Revisar protocolos procedimientos y fichas en aspectos referidos al SGSST: reporte de accidentes laborales, reportes de enfermedad laboral, reporte de incidentes laborales, afiliación a riesgos laborales | E80: ND | F80: documentar 4 procedimientos referidos al SGSST | G80: No de procedimientos documentados / 4 *100 | H80: 4 documentos de procedimietnos normalizados | I80: lider proceso SIGASST | J80: 2021-06-30
D81: Realizar un plan de inspecciones conjuntas con el COPASST de las instalaciones, maquinas, equipos del COPASST | E81: ND | F81: 1 cronograma de inspecciones conjuntas con el COPASST | G81: 1 documento firmado por COPASS Y SIGASST | H81: Cronograma firmado | I81: COPASST, Lider proceso SIGASST | J81: 2021-01-31
D82: Mantener la entrega de EPP, sus registros en la plataforma y los informes pertienentes a las entidades que los solicitan según la normatividad | E82: ND | F82: 1 Documento en PDF en el que se evidencie la entrega de EPP a los colaboradores de la empresa | G82: 1 Documento en PDF en el que se evidencie la entrega de EPP a los colaboradores de la empresa | H82: 1 Documento MENSUAL en PDF en el que se evidencie la entrega de EPP a los colaboradores de la empresa | I82: Lider porceso SIGASST | J82: mes a mes hasta 31/12/21
D83: Socializar el plan de prevención preparación y respuesta ante emergencias a través de la plataforma AVA del hospital | E83: ND | F83: 80% de los colaboradores de la empresa con curso aprobado en plataforma AVA | G83: No de trabajaores que realizan y aprueban el curso/ No total de trabajadores * 100 | H83: evidencia en plataforma AVA | I83: Lider de brigadas | J83: 2021-11-30
D84: conformación capacitación y entrenamiento de la brigada de emergencias | E84: ND | F84: brigada conformada, y capacitada | G84: No de brigadistas/ No total de trabajadores *100 | H84: listado de brigadistas y evidencias de capacitación | I84: lider de brigadas | J84: 2021-11-30
D85: Realizar auditoria interna a las empresas que tienen personal en la institución 1 en empresas de menos de 10 trabajadores, 1 en empresas de 10 a 50 trabajadores, 1 auditoria en empresa de mas de 50 trbajadores | E85: ND | F85: 1 auditoria a una empresa de menos de 10 trabajadores, 1 auditoria a una empresa con 11 a 50 trabajadores, y 1 auditoria a la empresa de servicios temporales | G85: No de auditorias realziadas/No de auditorias programadas *100 | H85: formato de auditoria diligenciado | I85: lider SIGASST | J85: 2021-08-30
D86: Realizar el reporte de accidentes laborales y enfermedades laborales que se presenten en los empleados públicos y contratistas por prestación de servicios | E86: ND | F86: realizar el 100% de los reprotes de accidentes laborales y enfermedades laborales que se presentan en empleados públicos y contratistas por OPS | G86: No de reportes de ELAL/ No tota lde eventos *100 | H86: FURAL Y FUREL, dilgienciado | I86: lider SIGASST | J86: 30/7/2021 y 28/12/2021
D87: Realizar seguimiento al cierre de los casos ATEL con la ARL POSITIVA | E87: ND | F87: Realizar una vez por semestre el cierre de los casos reportados a la ARL POSITIVA, en conjunto con el coordinador médico de la ARL | G87: No de eventos Accidentes laborales y enfermedades laborlaes revisados/No total de eventos ALEL presentados en el periodo | H87: acta de reunión diligenciada y firmada | I87: lider SIGASST | J87: 30/7/2021 y 28/12/2021
D88: Realizar el proceso de convocatoria para la conformación del COPASST | E88: ND | F88: adelantar el proceso de elección de los delegados de los trabajadores al COPASST | G88: COPASST conformado vigencia 2021 a 2023 | H88: Convocatoria y acta de elección | I88: Líder SGSST | J88: 2021-06-01
D89: Realiar el estudio tecnico MATRIZ DE CARGAS tiempos y movimientos del proceso SIGASST | E89: ND | F89: 1 matriz de cargas laborales del proceso SIGASST | G89: 100% de las activiades del proceso SIGASST medidas y cargadas en la matriz | H89: formato de matriz de cargas diligenciada | I89: Líder SGSST | J89: 2021-03-30
D90: Realizar seguimiento a los cambios que se presenten en la implementación del SGSST | E90: ND | F90: 1 formato de control de cambios diligenciado y evaluado | G90: 1 formato de control de cambios diligenciado y evaluado | H90: formato de cotnrol de cambios diligenciado | I90: Líder SGSST | J90: 2021-12-31
D91: Realizar evaluación del SGSST en la plataforma del fondode riesgos laborales de la vigencia 2020 | E91: ND | F91: evalaucion de 2019 y 2020 diligenciada en plataforma del fondo de riesgos laborales | G91: No de evalauciones cargas en plataforma/2 * 100 | H91: evidencia de realizado el reprote en la pagina | I91: Líder SGSST | J91: 2021-01-30
D92: Revisión anual por la alta dirección resultados y alcance de la auditoria | E92: ND | F92: evaluación de la vigencia 2021 diligenciada | G92: No de evalauciones ejecutadas/ No de evalaucioens planeadas *100 | H92: acta de auditoria | I92: Gerencia, Planeación, mejoramiento, seguridad y salud en el trabajo | J92: 2021-12-31
B93: SISTEMA DE GESTIÓN AMBIENTAL | D93: Elaborar y ejecutar el plan de acción ambiental para la vigencia 2021 | E93: ND | F93: Cumplir el 70% de las actividades programadas en el plan de acción ambiental vigencia 2021 | G93: No de actividades ejecutadas/No de actividades programadas*100 | H93: soporte de cada una de actividades programadas | I93: líder sigasst | J93: 31 de diciembre 2021
D94: reunion del comité de gestion ambiental y sanitaria GAGS, mensual | E94: ND | F94: Realizar una reunión mensual del comité de gestion ambiental | G94: 100% de las reuniones con acta firmada | H94: acta firmada | I94: Lider proceso SIGASST | J94: 2021-12-31
D95: Actualizar normograma ambiental | E95: ND | F95: normograma ambiental actualziado | H95: normograma actualizado | I95: Tecnico gestion ambiental | J95: 2021-05-31
D96: Actualizar PGIRASA con el nuevo codigo de colores, nuevas areas de expansión, actualización de inventario de residuos y lineamientos en emergencias ambientales | E96: ND | F96: documento actualizado | G96: 1 documento actualziado normalizado | H96: PGIRASA actualizado | I96: Lider proceso SIGASST | J96: 2021-11-30
D97: Realizar auditorias de gestión de residuos mensual | E97: ND | F97: realizar auditoria mensual de gestión de residuos, en la sede de Duitama | G97: informe de resultados de auditoria anexo a aca del comité | H97: informe adjunto al acta del GAGAS | I97: comité GAGAS | J97: 30 de cada mes
D98: Llevar los indicadores de consumo de energia, agua, gas y de generación de residuos y con base en resultados establecer planes de mejora si hay lugar PRESENTAR INFORME TRIMESTRAL | E98: ND | F98: 100% de los datos de la matriz de indicadores de gestion ambiental alimentados | G98: matriz de indicadores de gestion ambiental actualziada mes a mes | H98: matriz de indicadores actualizada mes a mes | I98: Lider proceso SIGASST | J98: 2021-12-31
D99: Realizar el registro anual de generador de residuos de las tres sedes, de acuerdo a la normatividad legal vigente | E99: ND | F99: 100% del registro anual de generadores de residuos en la plataforma de IDEAM CORPOBOYACA, de las 3 sedes | G99: 100% del registro anual de generadores por cada sede diligenciado y cerrado | H99: 1 formato de cierre de registro anual de generadores por cada sede | I99: Lider proceso SIGASST | J99: 2021-03-30
D100: Realizar y enviar el informe de gestión de residuos a la secretaria de salud de Boyacá en los plazos determinados por esta entidad (sedes Santa Rosa y Sativasur) | E100: ND | F100: 100% del informe de gestión de residuos diligenciado en plataforma web | G100: 100% del informe de gestión de resiudos radicado en secretaria de salud de Boyacá | H100: 1 formato de registro | I100: Lider proceso SIGASST | J100: 2021-02-15
D101: Realizar y enviar el informe de gestión de residuos a la secretaria de salud de Duitama en los plazos determinados por esta entidad Duitama | E101: ND | F101: 100% del informe de gestión de residuos diligenciado en plataforma web | G101: 100% del informe de gestión de resiudos radicado en secretaria de salud de Boyacá | H101: 1 formato de registro | I101: Lider proceso SIGASST | J101: 2021-02-15
D102: Capacitar a los trabajadores en lo referente a disposicion de residuos y nuevo codigo de colores | E102: ND | F102: 80% de los trabajadores capacitados en la gestión de residuos, y nuevo codigo de colores | G102: 80% de los trabajadores capacitados | H102: listas de asistencia a capacitación | I102: Lider proceso SIGASST Y Comité GAGAS | J102: 2021-12-31
D103: Actualizar inventario de contenedores para la compra y reposición de contenedores dañados | E103: ND | F103: inventario actualizado | H103: 1 documento que contenga el inventario de contenedores, su estado y lo que se requiere para reposición | I103: Lideder proceso SIGASST | J103: 2021-08-30
D104: Comprar los contenedores requeridos de acuerdo al estudio tecnico realziado por el lider SIGASST | E104: ND | F104: compra de cotenedores requeridos | G104: 100% de contenedores requeridos instalados en las areas requeridas | H104: Factura de compra contenedores | I104: subgerencia adminsitrativa | J104: 2021-10-31
D105: Realizar auditoria de residuos de todas las áreas | E105: ND | F105: Una auditoria mensual | G105: 100% de las auditorias realizadas | H105: actas de comité GAGAS | I105: comité GAGAS | J105: 2021-12-31
D106: Realizar visita de auditoria a gestor externo de residuos peligrosos | E106: ND | F106: 1 visita al año | G106: 1 visita realiza | H106: 1 documento que contenga la lista de chequeo de verificación, firmada pro el gestor externo y el auditor por parte del hospital | I106: Lider proceso SIGASST | J106: 2021-10-31
D107: Revisar Kits de atención de emergencias ambientales por rupturas de bolsa o derrame de sustancias o material peligrosos | E107: ND | F107: revision mensual de los kits entregados en el mes d eenero | G107: 100% de los kits revisados mes a mes | H107: acta de comité GAGAS | I107: comité GAGAS | J107: 2021-12-31
D108: Actualizar el listado de sustancias químicas | E108: ND | F108: 100% de las sustancias quimicas que se usan en el hospital, inventariadas en el registro | G108: 1 formato actualizado | H108: 1 formato actualizado | I108: comité GAGAS | J108: 2021-08-30
D109: solicitar a los proveedores de sustancias quimicas, presenten la ficha de seguridad, bajo los parametros establecidos en el sistema globalmente armonizado | E109: ND | F109: 100% de las sustancias quimicas que se usan en el hospital, con ficha de seguridad en el SGA | G109: No de sustancias quimicas con ficha de seguridad/ No total de sustancias qcas *100 | H109: fichas deseguridad en archivo digital | I109: Lider Contratación Coord de laboratorio clínico | J109: 2021-09-30
D110: Realizar capacitación en gestión segura de sustancias químicas al personal de mantenimiento, servicios generales y laboratorio clinico . Y Sistema globalmente armonizado | E110: ND | F110: 90% de los colaboradores de mantenimiento, serv grales y lab clínico capacitado | G110: No de trabajaodres capacitados en gestion segura de sustancias qcas / No total de trabajadores del area *100 | H110: planillas de capacitación | I110: comité GAGAS | J110: 2021-10-31
D111: realizar inspecciones de control de plagas | E111: ND | F111: auditoria mensual | G111: 100% de las auditorias | H111: formato de control plagas | I111: Tecnico gestion ambiental | J111: 2021-12-31
D112: Normalizar el manual de lavado de tanques y socializarlo con el area de mantenimiento | E112: ND | F112: 1 documento normalizado | G112: 1 documento normalizado | H112: docuemtno normalizado | I112: Lider proceso SIGASST | J112: 2021-04-30
D113: Realizar estudio de vertimientos líquidos y enviarlo al Gobierno Municipal de acuerdo a lo descrito en la norma | E113: ND | F113: resultados del estudio de vertimientos liquidos de las 3 sedes | G113: 1 resultado del estudio por cada area | H113: documento de estudio de vertimientos liquidos | I113: Lider de mantenimiento | J113: 2021-02-28
A114: ADMINISTRATIVAMENTE FUERTES | B114: Avanzando en MIPG | C114: TALENTO HUMANO: Gestión estratégica del talento humano | D114: Ejecutar el plan estratégico de talento humano | E114: 86% vigencia 2020 | F114: cumplir el 90% de las actividades programadas en el plan de acción de talento humano vigencia 2021 | G114: No de actividades ejecutadas/No de actividades programadas*100 | H114: soporte de cada una de actividades programadas | I114: Líder Talento Humano | J114: 31 de diciembre 2021
D115: Ejecutar el plan estratégico de talento humano | E115: ND | F115: cumplir el 90% de las actividades programadas en el plan de acción de talento humano vigencia 2021 | G115: No de actividades ejecutadas/No de actividades programadas*100 | H115: soporte de cada una de actividades programadas | I115: Líder Talento Humano | J115: 31 de diciembre 2021
D116: Formular politica de Gestion Estrategica de Talento Humano | E116: ND | F116: 1 | G116: No actividades ejecutadas / No actividades progrmadas | H116: Encuesta de satisfacción | I116: Lider talento humano | J116: Mayo de 2021
D117: Fortalecer e implementar plan de bienestar y de capacitaciones para el 2021 en el programa calidad de vida laboral, con actividades relacionas con /desvinculacion laboral asistida y retiro - progarma de pre pensionados) | E117: ND | F117: 1 | G117: No actividades ejecutadas / No actividades progrmadas | H117: Encuesta de satisfacción | I117: Lider talento humano | J117: Marzo de 2021
D118: Estructurar procedimiento que incluya la planeación del recurso humano necesario para la realización de las actividades la institución | E118: ND | F118: 1 | G118: Documento normalizado | H118: Resolución de normalización | I118: Lider talento humano | J118: Junio de 2021
D119: Implementar el plan de incentivos que permitan comprometer a los colaboradores al mejoramiento continuo | E119: ND | F119: >75% | G119: Documento normalizado | H119: Cumplimiento Plan de Bienestar | I119: Lider talento humano | J119: Marzo de 2021
D120: Elaborar de matriz de caracterización del talento humano | E120: ND | F120: 1 | G120: No. Colaboradores caracterizados del HRD / Total de colaboradores vinculados | H120: Matriz socializada | I120: Lider talento humano | J120: Junio de 2021
D121: Monitoriar el cumplimiento de la evaluación de desempeño de los servidores públicos inscritos en carrera administrativa en sus distintas fases. | E121: ND | F121: 2 | G121: Monitoreos relaizados | H121: Comunicaciones emitidas, actas de comité operativa, calificaciones realizadas | I121: Lider talento humano | J121: Febrero y agosto de 2021
D122: Realizar estudio tecnico y finaciero para formalización laboral | E122: ND | F122: 1 | G122: Realizar estudio tecnico y finaciero para formalización laboral | H122: Documento elaborado, acta de junta directiva | I122: Lider talento humano-Asesor juridico- Asesor fnanciero | J122: Septiembre de 2021
D123: Elaborar el plan de inducción / reinducción, acorde a las competencias de cada cargo, y generar registro de la inducción recibida | E123: ND | F123: 1 | G123: Programa de inducción/ reindicción elaborado | H123: Programa de inducción/ reindicción elaborado y socializado | I123: Lider talento humano | J123: Abril de 2021
D124: Garantizar la custodia de los acuerdos de gestion dentro de las hojas de vida de los servidores públicos que los firman | E124: ND | F124: 1 | G124: Acuerdos de gestión suscritos y custodiados/cargos directivos de libre nombramiento y remosión * 100% | H124: Acuerdos de gestión suscritos e incluídos en historia laboral | I124: Lider talento humano | J124: Permanente
D125: Realizar actividad para conmemorar el dia nacional de servidor público de acuerdo a Resolució n286 5de 2013 (DUR 1083 DE 2015) | E125: ND | F125: 1 | G125: Actividad de conmemoración realizada | H125: Registros audiovisuales publicados en página web | I125: Lider talento humano | J125: Junio de 2021
D126: Dar a conocer a los trabajadores el programa "Servimos" y motivar su participación | E126: ND | F126: 2 | G126: Socializaciones realizadas | H126: Firma de participantes, material audiovisual | I126: Lider talento humano | J126: Junio de 2021 Noviembre de 2021
D127: Enviar informes sobre actividades de la comisión de personal a la CNSC | E127: ND | F127: 4 | G127: Informes elaborados y enviados a la CNSC | H127: Informes elaborados y enviados a la CNSC | I127: Lider talento humano | J127: Trimestral
D128: Realizar medicion de clima laboral y socializar resultados | E128: ND | F128: 1 | G128: Documento de análisis de medición de clima laboral elaborado y socializado | H128: Documento de análisis de medición de clima laboral elaborado y socializado | I128: Lider talento humano | J128: Noviembre de 2021
D129: Otorgar un reconocimiento de la trayectoria laboral y agradecimiento por el servicio prestado a las personas que se desvinculan | E129: ND | F129: 1 | G129: Reconocimientos entregados/personas que se desvinculan de la institución *100% | H129: Reconocimientos entregados | I129: Lider talento humano | J129: Diceimbre de 2021
D130: Dar cumplimiento al plan de trabajo anual del sistema de seguridad y salud en el trabajo. | E130: ND | F130: 0.7 | G130: Actividades elaboradas/actividades programadas *100% | H130: Soportes de cada actividad ejecutada. Matriz de seguimiento al cumplimiento de actividades por parte de líder de talento humano | I130: Lider talento humano | J130: Según cronograma establecido
C131: TALENTO HUMANO: Política de integridad | D131: Adoptar política de Integridad | E131: ND | F131: 1 | G131: evaluación de adherencia a los colaboradores / total de colaboradores | H131: Actas de socialización | I131: Líder de talento humano | J131: Febrero de 2021
D132: Realizar actividades o ejercicios participativos para la divulgación y adherencia de los valores y principios adoptados en código de integridad | E132: ND | F132: 18 | G132: Total de actividades ejecutadas/ actividades programadas | H132: Lista de asistencia- fotos- videos- actas de reunión | I132: Líder de talento humano | J132: Marzo de 2021- Abril de 2021
D133: Aplicar encuesta para verificar resultados de las actividades de socialización del código de integridad | E133: ND | F133: 1 | G133: Total de actividades ejecutadas/ actividades programadas | H133: Lista de asistencia- fotos- videos- actas | I133: Líder de talento humano | J133: Noviembre de 2021
C134: DIRECCIONAMIENTO ESTRATÉGICO Y PLANEACIÓN: Planeación institucional | D134: Elaboración de diagnóstico de la entidad y caracterización de usuarios | E134: ND | F134: 1 | G134: Diagnóstico de la entidad elaborado y usuarios caracterizados | H134: Diagnóstico de la entidad caracterización de usuarios | I134: Líder de planeación | J134: Junio de 2021
D135: Formulación de planes operativos anuales. | E135: Mestas del plan de desarrollo para la vigencia 2021 | F135: 1 | G135: Planes operativos (plan de desarrollo) formulados | H135: Planes operativos, acta de junta directiva. | I135: Líder de planeación | J135: Noviembre de 2021
D136: Formular y publicar el Plan de Anticorrupción y atención al ciudadano | E136: ND | F136: 1 | G136: PAAC formulado y publicado en página web | H136: PAAC formulado y publicado en página web | I136: Líder de planeación Profesional de apoyo direccionamiento | J136: 31 de enero de 2021
D137: Formulación de planes de acción MIPG para la vigencia 2021 | E137: Autodiagnosticos 2020 | F137: 1 | G137: Planes de acción MIPG formulados | H137: Planes de acción MIPG formulados y publicados en página web | I137: Líder de planeación | J137: Enero de 2021
D138: Análisis de información obtenida de encuesta para identificar necesidades de información y/o servicios por parte de usuarios | E138: ND | F138: 4 | G138: Informes ejecutados /Informes programados *100% | H138: Informe de indicadores de satisfacción | I138: Líder de Planeación - Líder SIAU | J138: Trimestral
D139: Formulación del PAMEC institucional | E139: ND | F139: 1 | G139: PAMEC formulado | H139: PAMEC formulado y remitido a Secretaría de Salud | I139: Líder de calidad | J139: 22 de febrero de 2021
D140: Revisión y actualización de políticas institucionales | E140: 7 Politicas | F140: 1 | G140: Revisión y actualización de políticas | H140: Políticas revisadas, actualizadas y/0 formuladas y normalizadas | I140: Líder de Planeación - Líder de calidad | J140: 31 de diciembre de 2021
D141: Crear, revisar, actualizar y socializar comités institucionales según necesidad | E141: ND | F141: 10 | G141: Revisión y actualización de comités institucionales | H141: Comités actualizados | I141: Líder de Planeación - Líder de calidad | J141: 31 de diciembre de 2021
C142: DIRECCIONAMIENTO ESTRATÉGICO Y PLANEACIÓN: Gestión Presupuestal y eficiencia del gasto público | D142: Formulación de presupuesto para la vigencia 2022 conforme lineamientos y cronograma emitidos por la Secretaría de Hacienda del departamento de Boyacá | E142: ND | F142: 1 | G142: Presupuesto elaborado y aprobado por el CONFIS | H142: Presupuesto elaborado Acta de junta directiva Resolución CONFIS | I142: Profesional de apoyo direccionamiento | J142: 31 de diciembre 2021
D143: Realizar modificaciones al presupuesto aprobado para la vigencia 2021, conforme a requerimientos de la institución | E143: ND | F143: 1 | G143: Modificaciones realizadas/modificaciones requeridas | H143: Modificantes realizadas Acuerdos de junta directiva Resoluciones de CONFIS | I143: Profesional de apoyo direccionamiento | J143: 31 de diciembre 2021
C144: GESTIÓN CON VALORES PARA RESULTADOS: Fortalecimiento organizacional y simplificación de procesos | D144: Realizar inventario de procesos y procedimientos pendientes por actualizar y formular | E144: ND | F144: 1 | G144: Inventario elaborado y presentado en comité Operativo | H144: Inventario elaborado Acta de comité | I144: Líder de desarrollo organizacional | J144: 30 de agosto de 2021
D145: De forma concertada con líderes, definir cronograma de formulación y /o actualización de procesos y procedimientos pendientes | E145: ND | F145: 1 | G145: Cronograma elaborado y socializado en comité operativo | H145: Cronograma elaborado Acta de comité | I145: Líder de desarrollo organizacional | J145: Marzo de 2021
D146: Dar cumplimiento a cronograma propuesto | E146: ND | F146: 0.9 | G146: Procesos-procedimientos normalizados/Procesos-procedimientos programados según cronograma | H146: Cronograma Procesos y procedimientos formulados / actualizados, según cronograma | I146: Todos los líderes | J146: 30 de diciembre de 2021
C147: GESTIÓN CON VALORES PARA RESULTADOS: Gobierno digital | D147: Socializar e implementar el Plan estratégico de Tecnología de la Información - PETI- | E147: ND | F147: >30% | G147: % Avance de socialización e implementación | H147: Soportes de ejecución de cada uno de los componentes del PETI | I147: Líder de gestión de información | J147: 30 de noviembre de 2021
C148: GESTIÓN CON VALORES PARA RESULTADOS: Seguridad Digital | D148: Socializar la política de seguridad de la información y protección de datos | E148: ND | F148: 1 | G148: Socialización realizada | H148: Actas de socialización- encuestas aplicadas/Total de colaboradores del HRD | I148: Líder de gestión de información | J148: 30 de noviembre de 2021
D149: Socializar el Plan estratégico de seguridad de la información. | E149: ND | F149: 1 | G149: Socialización realizada | H149: Actas de socialización- encuestas aplicadas/Total de colaboradores del HRD | I149: Líder de gestión de información | J149: 30 de noviembre de 2021
C150: GESTIÓN CON VALORES PARA RESULTADOS: Defensa Jurídica | D150: Realizar reuniones de comité de conciliaciones con la periodicidad establecida en la normatividad actual | E150: ND | F150: 20 | G150: Reuniones de comité realizadas/reuniones programadas | H150: Actas de reunión | I150: Asesor jurídico interno | J150: Permanente
D151: Presentar informe de estado de procesos judiciales ante el comité de conciliaciones. | E151: ND | F151: 2 | G151: Informes presentados ante comité de conciliaciones | H151: Informes presentados Actas de reunión | I151: Asesor jurídico externo | J151: Julio (con corte a junio) y Diciembre (con corte a diciembre
D152: Presentar informe de proyección de contingencias judiciales a la oficina de contabilidad | E152: ND | F152: 4 | G152: Informe de proyección de contingencias judiciales presentado a oficina de contabilidad | H152: Informe elaborado en formato establecido por Ministerio Salud y de Protección Social. Envío de informe vía correo electrónico | I152: Asesor jurídico externo | J152: Trimestral a partir de enero de 2021 y en el momento en que se presente alguna novedad.
D153: Dar respuesta de tutelas dentro de los términos previstos en la ley | E153: ND | F153: 1 | G153: Total de tutelas respondidas en términos/total de tutelas en las que se vincula al hospital | H153: Respuestas radicadas de forma oportuna | I153: Asesor jurídico interno | J153: Permanente
D154: Actualización permanente del estado de procesos judiciales en al aplicativo SIHO | E154: ND | F154: 1 | G154: Procesos actualizados/total de procesos | H154: Aplicativo SIHO con información actualizada | I154: Asesor jurídico externo | J154: Permanente
C155: GESTIÓN CON VALORES PARA RESULTADOS: Servicio al ciudadano | D155: Definir cronograma de trabajo propuesto para la audiencia de rendición de cuentas | E155: ND | F155: 1 | G155: Cronograma de Rendición de Cuentas | H155: Cronograma de Rendición de Cuentas | I155: Líder de planeación - Líder Comunicaciones | J155: Enero de 2021
D156: Definir canales y metodologías que se emplearán para desarrollar las actividades de rendición de cuentas | E156: ND | F156: 1 | G156: Informe y/o documento que mencione mediante que canales y metodologías se desarrollara la rendición de cuentas. | H156: Informe y/o documento que mencione mediante que canales y metodologías se desarrollara la rendición de cuentas. | I156: Líder de planeación - Líder Comunicaciones | J156: Febrero de 2021
D157: Consolidar la información con el equipo interno de apoyo para presentar RDC | E157: ND | F157: 1 | G157: Información consolidada | H157: Información consolidada | I157: Líder de planeación | J157: Febrero de 2021
D158: Estructurar presentación definitiva y Publicarla oportunamente, en la página web de la entidad. | E158: ND | F158: 1 | G158: Presentación definitiva | H158: Presentación definitiva | I158: Líder de planeación | J158: 10 de Marzo de 2021
D159: Realizar transmisión en vivo (Facebook live) de la audiencia de RDC | E159: ND | F159: 1 | G159: Transmisión en vivo realizada | H159: Transmisión en vivo realizada | I159: Líder de comunicaciones | J159: Marzo de 2021
D160: Publicar video de audiencia de rendición de cuentas en página web. | E160: ND | F160: 1 | G160: Video publicado | H160: Video publicado | I160: Líder de comunicaciones | J160: Marzo de 2021
D161: Realizar actividades de rendición de cuentas parciales dirigida a grupos de interés | E161: ND | F161: 3 | G161: Actividades de rendición de cuentas parciales, dirigidas a grupos de interés | H161: Actividades de rendición de cuentas parciales, dirigidas a grupos de interés | I161: Líder de planeación - Líder SIAU - Líder de comunicaciones | J161: Junio, Octubre y Diciembre de 2021
D162: Fortalecer la rendición de cuentas con distintos formatos accesibles con lenguaje comprensible al ciudadano. | E162: ND | F162: 1 | G162: Material audiovisual con diferentes formatos accesibles con lenguaje comprensible al ciudadano | H162: Presentaciones Listas de asistencia Acta de rendición de Cuentas | I162: Líder de planeación - Líder SIAU - Líder de comunicaciones | J162: Cuatrimestral
D163: Notificar a la Superintendencia Nacional de Salud la realización de audiencia de RDC, según lineamientos. | E163: ND | F163: 1 | G163: Informe y acta publicadas | H163: Acta de rendición de cuentas Informe de audiencia pública | I163: Líder de planeación | J163: Marzo de 2021
D164: Adelantar actividades de difusión a través de medios internos y externos para promover que los funcionarios de la ESE y la ciudadanía en general conozcan y participen en el desarrollo de la estrategia de rendición de cuentas institucional. | E164: ND | F164: 1 | G164: Actividades desarrolladas/actividades programadas | H164: Material audiovisual publicado. | I164: Oficina de comunicaciones Líder SIAU | J164: Marzo de 2021
D165: Informar a los usuarios los mecanismos y canales de participación en actividades de rendición de cuentas | E165: ND | F165: 1 | G165: Información publicada respecto a los canales de participación en las actividades de RDC | H165: Información publicada respecto a los canales de participación en las actividades de RDC | I165: Oficina de comunicaciones Líder SIAU | J165: Marzo de 2021
D166: Convocar a entes de control para participar en actividades de Rendición de Cuentas del HRD | E166: ND | F166: 1 | G166: Convocatoria realizada | H166: Convocatoria realizada | I166: Oficina de comunicaciones Líder SIAU | J166: Marzo de 2021
D167: Presentar ante las instancias competentes el informe de evaluación del desarrollo de la estrategia de rendición de cuentas 2020. | E167: ND | F167: 1 | G167: Informe elaborado y remitido a instancias competentes | H167: Informe elaborado y remitido a instancias competentes | I167: Asesora de control interno | J167: Según cronograma de plan de auditorías
D168: Retroalimentar las observaciones de los participantes en la rendición de cuentas sobre la gestión institucional, ante comité operativo | E168: ND | F168: 1 | G168: Observaciones a la audiencia de rendición de cuentas socializadas ante comité operativo | H168: Acta de comité operativo | I168: Líder de planeación | J168: Mayo de 2021
D169: Publicación de mensajes de contenido audiovisual con lenguaje incluyente | E169: ND | F169: 1 | G169: Material audiovisual con lenguaje incluyente/Material audiovisual publicado | H169: Material audiovisual publicado | I169: Líder de comunicaciones | J169: Permanente
D170: Socialización y adherencia de la guía de atención de enfoque diferencial a los colaboradores por sedes del HRD mediante herramientas digitales | E170: ND | F170: Sativasur >90% Santa Rosa >90% Duitama> 75% | G170: No. de colaboradores por sede que participaron en la socialización y evaluación /Total de colaboradores por sede del HRD | H170: Análisis por sedes de los resultados, más link de formulario de la socialización | I170: SIAU / Coordinadora sedes integradas | J170: Julio de 2021
D171: Racionalizar como mínimo un tramites en la vigencia 2021 de los que se encuentran inscritos en el SUIT. | E171: 1 Tramite racionalizado en el SUIT en 2020 | F171: 1 | G171: Trámites racionalizados | H171: Trámites racionalizados | I171: Líder de comunicaciones | J171: Diciembre de 2021
D172: Identificación de las mejoras a realizar en los trámites | E172: ND | F172: 1 | G172: Reuniones para identificar mejoras a los trámites inscritos | H172: Actas de reunión con líderes de proceso. | I172: Líder de planeación - Líder Comunicaciones- Líder mejoramiento | J172: Diciembre de 2021
D173: Atención a PQRSF radicados por los usuarios, dentro de los términos establecidos en la normatividad vigente | E173: ND | F173: 1 | G173: PQRSF contestadas dentro de términos establecidos/PQRSF radicadas por los usuarios | H173: Respuestas entregadas al usuario, respuestas publicadas en página web o carteleras | I173: Líder de atención al usuario | J173: Permanente
C174: EVALUACIÓN DE RESULTADOS: Seguimiento y evaluación del desempeño institucional | D174: Realizar seguimiento al cumplimiento de planes operativos/planes de acción | E174: ND | F174: 3 | G174: Seguimiento al cumplimiento de Planes operativos/planes de acción | H174: Matriz de evaluación diligenciada y remitida a asesora de control interno y revisoría fiscal | I174: Líder de planeación | J174: Abril- Agosto- Diciembre 2021
D175: Seguimiento a indicadores financieros y de calidad | E175: ND | F175: 12 | G175: Número de reuniones de seguimiento realizadas/Número de reuniones de seguimiento programadas | H175: Acta de reuniones | I175: Profesional de apoyo direccionamiento | J175: Mensual
D176: Realización de autodiagnósticos MIPG | E176: ND | F176: 2 | G176: Autodiagnósticos realizados/autodiagnósticos diseñados por DAFP | H176: Autodiagnósticos realizados y remitidos a líder de planeación | I176: Todos los líderes | J176: Febrero- Octubre 2021
D177: Socialización de resultados de autodiagnósticos en comité de gestión y desempeño | E177: ND | F177: 2 | G177: Socialización realizada | H177: Acta de reunión | I177: Líder de planeación | J177: Marzo- Noviembre 2021
C178: INFORMACIÓN Y COMUNICACIÓN: Gestión documental | D178: Mantener actualizado el inventario de activos de información del hospital. | E178: Matriz inventario de activos de información. Vigencia 2020 | F178: Matriz inventario de activos de información. | G178: Información actualizada | H178: Matriz actualizada | I178: Líder de gestión de la información | J178: 30 de Junio de 2021 31 de Diciembre de 2021
D179: Depuración de Historias clínicas de acuerdo con la normatividad vigente (Acuerdo 004 de 2019 del AGN y Rln 839 de 2017 de Ministerio de Protección Social). | E179: 300000 | F179: 2000 | G179: Número de historias clínicas depuradas/Número de Historias clínicas por depurar | H179: Inventario documental a eliminar, Actas de comité de Historias clínicas, y comité institucional de gestión y desempeño, publicaciones en página web. | I179: Líder Gestión Documental | J179: Diciembre de 2021
D180: Seguimiento al cumplimieto PINAR (Plan institucional de archivos) | E180: ND | F180: 2 | G180: Seguiemiento ejecutados/ seguimeintos programados | H180: Informe | I180: Planeación | J180: Junio de 2021- Diciembre 2021
D181: Destruir la documentación aprobada para eliminar y entregar para reciclaje. | E181: Depuración de Historias clínicas | F181: Documentación picada y acta de entrega a reciclaje | G181: Documentación picada y acta de entrega a reciclaje | H181: Actas de entrega para reciclaje | I181: Líder Gestión Documental | J181: Diciembre de 2021
D182: Auditoria a las diferentes dependencias del HRD, para establecer la adherencia a la política de gestión documental e información | E182: ND | F182: 1 | G182: Numero de auditorias realizadas a las diferentes dependencias/ Total de dependencias | H182: Informe de auditoria | I182: Líder Gestión Documental | J182: Octubre de 2021
D183: Socializar y aplicar las tablas de retención documental aprobadas en todos los procesos del HRD. | E183: ND | F183: 4 | G183: Socializaciones realizadas/Socializaciones programadas | H183: Gestión documental | I183: Líder Gestión Documental | J183: Agosto de 2021
D184: Elaborar de cronograma de transferencias documentales | E184: ND | F184: 1 cronograma de transferencias documentales elaborado y socializado | G184: 1 cronograma de transferencias documentales elaborado y socializado | H184: Cronograma elaborado, publicación en página web y correos enviados a líderes de procesos | I184: Líder Gestión Documental | J184: Marzo de 2021
D185: Entrega de informe de cumplimiento de transferencias documentales | E185: ND | F185: 1 informe de cumplimiento de transferencias documentales realizado | G185: 1 informe de cumplimiento de transferencias documentales realizado | H185: Informe de cumplimiento de transferencias documentales y soporte de entrega a subgerencia administrativa | I185: Líder Gestión Documental | J185: Noviembre de 2021
D186: Organización de fondo acumulado | E186: ND | F186: 20 | G186: Número de metros de fondo acumulado organizado | H186: Inventario de eliminación y publicación en página web | I186: Líder Gestión Documental | J186: 20 a 30 de junio y 20 restantes a diciembre de 2021
D187: Dar cumplimiento al cronograma de transferencias | E187: ND | F187: 0.9 | G187: Transferencias documentales realizadas/transferencias documentales programadasx 100 | H187: Actas de entrega de transferencias documentales e inventario de transferencias documentales y publicación en página web | I187: Todos los líderes | J187: Julio de 2021
D188: Actividades de prevención y conservación de documentos de acuerdo a la SIC | E188: ND | F188: 1 Fumigación realizada | G188: 1 Fumigación realizada | H188: Contrato suscrito recibido a satisfacción por parte del supervisor | I188: Subgerencia administrativa Gestión documental | J188: Junio de 2021
C189: INFORMACÓN Y COMUNICACIÓN: Transparencia, acceso a la información pública, y lucha contra la corrupción | D189: Publicar información en la página web de la entidad, teniendo en cuenta requerimientos de entes de control | E189: ND | F189: 1 | G189: Publicaciones realizadas según requerimientos de entes de control | H189: Publicación de ejecuciones presupuestales, estados financieros, Planes de acción, plan de desarrollo, resoluciones y acuerdos, indicadores de satisfacción de usuarios, entre otros | I189: Líder de comunicaciones | J189: Según solicitud
D190: Mantener actualizada la pagina WEB según la Ley 1712 de 2014 | E190: 0.59 | F190: 1 | G190: Pagina web actualizada de acuerdo a la Ley 1712 de 2014 | H190: Pagina web actualizada de acuerdo a la Ley 1712 de 2014 | I190: Líder de gestión de la información | J190: 31 de diciembre de 2021
D191: Divulgación de los datos abiertos | E191: 0.59 | F191: 1 | G191: Publicación de datos | H191: Información requerida por la ley 1712 de 2014 publicada y actualizada | I191: Líder de gestión de la información | J191: 31 de diciembre de 2021
C192: GESTIÓN DEL CONOCIMIENTO Y LA INNOVACIÓN | D192: Cargar cursos en plataforma AVA, teniendo en cuenta necesidades de comunicación | E192: ND | F192: 1 | G192: Cursos cargados en AVA/Solicitudes de cargue de cursos realizada | H192: Cursos publicados en plataforma AVA y estadística de realización del curso. | I192: Líder gestión del conocimiento | J192: Permanente
D193: Definir plan de capacitaciones para la vigencia | E193: ND | F193: 1 | G193: Plan de capacitaciones definido | H193: Plan de capacitaciones definido | J193: Enero de 2021
D194: Realizar seguimiento al cumplimiento del plan de capacitaciones | E194: ND | F194: 4 | G194: Seguimientos realizados y socializados en comité operativo | H194: Seguimientos realizados Actas de comité operativo | J194: Trimestral hasta diciembre de 2021
D195: Dar cumplimiento al plan de capacitaciones | E195: ND | F195: 0.9 | G195: Cursos realizados/cursos programados | H195: Listado de asistencias | I195: Todos los líderes | J195: Según cronograma de capacitaciones. Evaluación trimestral.
D196: Definir proceso de inducción del personal en formación, e incluirlo en el programa de inducción y reinducción. | E196: ND | F196: 1 | G196: Proceso elaborado y normalizado | H196: Proceso elaborado y normalizado | I196: Líder gestión del conocimiento | J196: Diciembre de 2021
D197: Ejecutar actividades de inducción del personal en formación, remitido por las instituciones con las cuales se cuenta con convenio de docencia y servicio. | E197: ND | F197: 2 | G197: Actividades de inducción realizadas | H197: Actividades de inducción realizadas | I197: Líder gestión del conocimiento | J197: Mayo y noviembre de 2021
D198: Socializar los resultados de investigaciones en las que participe el hospital | E198: ND | F198: 1 | G198: Socialización de resultados realizada/investigaciones realizadas | H198: Publicaciones en página web, boletines institucionales, entre otros | I198: Líder gestión del conocimiento Líder de comunicaciones | J198: Según solicitud
C199: CONTROL INTERNO: Ambiente de control | D199: Formulación y aprobación del plan de auditorías de calidad | E199: ND | F199: 1 | G199: Plan de auditorías formulado y aprobado en comité de G y D | H199: Plan de auditorías formulado y aprobado en comité de G y D | I199: Líder de calidad | J199: Febrero de 2021
D200: Formulación y aprobación del plan de auditorías de control interno | E200: ND | F200: 1 | G200: Plan de auditorías formulado y aprobado en comité de G y D | H200: Plan de auditorías formulado y aprobado en comité de G y D | I200: Asesora de Control interno | J200: Febrero de 2021
... 6 more rows

Sheet GRAFICO TRIMESTRAL POR EJE (hidden)
D2: Etiquetas de fila | E2: Suma de avance
D3: ADMINISTRATIVAMENTE FUERTES | E3: 0.884057971
D4: COMPETITIVOS Y SOSTENIBLES | E4: 1
D5: NOS EVALUAMOS Y MEJORAMOS | E5: 1
D6: SOCIALMENTE RESPONSABLES | E6: 0.8571428571
D7: SUPERANDO LA PANDEMIA | E7: 1
D8: TRABAJANDO EN CONDICIONES DE SEGURIDAD, CALIDAD Y CALIDEZ. | E8: 1
D9: Total general | E9: 5.741200828
D10: Total de Cumplimiento | E10: =GETPIVOTDATA("avance",$D$2)/6 -> 0.9568668047

Sheet GRAFICO TRIMESTRAL POR PROGRAMA (hidden)
B9: Etiquetas de columna
A10: Valores | B10: CONTROL INTERNO: Ambiente de control
A11: % Avance | B11: 1
A12: % Por Ejecutar | B12: 0
